Workbook

Sheet 1. Info
AC1: =IF('3. Data_Input_Sheet'!M12=0, "", '3. Data_Input_Sheet'!M12) -> Technical Conference
P11: Version | Q11: 5
F16: Utility Name | G16: North Bay Hydro Distribution Limited
F18: Service Territory | G18: North Bay
F20: Assigned EB Number | G20: EB-2014-0099 | AA20: Company Name
Z21: 1 | AA21: Algoma Power Inc.
F22: Name and Title | G22: Melissa Casson, Regulatory Manager | Z22: 2 | AA22: Atikokan Hydro Inc.
Z23: 3 | AA23: Attawapiskat Power Corp.
F24: Phone Number | G24: 705-474-8100 xt: 300 | Z24: 4 | AA24: Bluewater Power Distribution Corporation
Z25: 5 | AA25: Brant County Power Inc.
F26: Email Address | G26: mcasson@northbayhydro.com | Z26: 6 | AA26: Brantford Power Inc.
Z27: 7 | AA27: Burlington Hydro Inc.
Z28: 8 | AA28: Cambridge and North Dumfries Hydro Inc.
Z29: 9 | AA29: Canadian Niagara Power Inc.
Z30: 10 | AA30: Centre Wellington Hydro Ltd.
Z31: 11 | AA31: Chapleau Public Utilities Corporation
Z32: 12 | AA32: Clinton Power Corporation
Z33: 13 | AA33: COLLUS Power Corporation
Z34: 14 | AA34: Cooperative Hydro Embrun Inc.
Z35: 15 | AA35: E.L.K. Energy Inc.
Z36: 16 | AA36: Enersource Hydro Mississauga Inc.
Z37: 17 | AA37: Entegrus Powerlines Inc.
Z38: 18 | AA38: ENWIN Utilities Ltd.
Z39: 19 | AA39: Erie Thames Powerlines Corporation
Z40: 20 | AA40: Espanola Regional Hydro Distribution Corporation
Z41: 21 | AA41: Essex Powerlines Corporation
Z42: 22 | AA42: Festival Hydro Inc.
Z43: 23 | AA43: Festival Hydro Inc. - Hensall
Z44: 24 | AA44: Fort Albany Power Corporation
Z45: 25 | AA45: Fort Frances Power Corporation
Z46: 26 | AA46: Greater Sudbury Hydro Inc.
Z47: 27 | AA47: Grimsby Power Inc.
Z48: 28 | AA48: Guelph Hydro Electric Systems Inc.
Z49: 29 | AA49: Haldimand County Hydro Inc.
Z50: 30 | AA50: Halton Hills Hydro Inc.
Z51: 31 | AA51: Hearst Power Distribution Company Limited
Z52: 32 | AA52: Horizon Utilities Corporation
Z53: 33 | AA53: Hydro 2000 Inc.
Z54: 34 | AA54: Hydro Hawkesbury Inc.
Z55: 35 | AA55: Hydro One Brampton Networks Inc.
Z56: 36 | AA56: Hydro One Networks Inc.
Z57: 37 | AA57: Hydro Ottawa Limited
Z58: 38 | AA58: Innisfil Hydro Distribution Systems Limited
Z59: 39 | AA59: Kashechewan Power Corporation
Z60: 40 | AA60: Kenora Hydro Electric Corporation Ltd.
Z61: 41 | AA61: Kingston Hydro Corporation
Z62: 42 | AA62: Kitchener-Wilmot Hydro Inc.
Z63: 43 | AA63: Lakefront Utilities Inc.
Z64: 44 | AA64: Lakeland Power Distribution Ltd.
Z65: 45 | AA65: London Hydro Inc.
Z66: 46 | AA66: Midland Power Utility Corporation
Z67: 47 | AA67: Milton Hydro Distribution inc.
Z68: 48 | AA68: Newmarket - Tay Power Distribution Ltd.
Z69: 49 | AA69: Niagara Peninsula Energy Inc.
Z70: 50 | AA70: Niagara-on-the-Lake Hydro Inc.
Z71: 51 | AA71: Norfolk Power Distribution Inc.
Z72: 52 | AA72: North Bay Hydro Distribution Limited
Z73: 53 | AA73: Northern Ontario Wires Inc.
Z74: 54 | AA74: Oakville Hydro Electricity Distribution Inc.
Z75: 55 | AA75: Orangeville Hydro Limited
Z76: 56 | AA76: Orillia Power Distribution Corporation
Z77: 57 | AA77: Oshawa PUC Networks Inc.
Z78: 58 | AA78: Ottawa River Power Corporation
Z79: 59 | AA79: Parry Sound Power Corporation
Z80: 60 | AA80: Peterborough Distribution Incorporated
Z81: 61 | AA81: PowerStream Inc.
Z82: 62 | AA82: PUC Distribution Inc.
Z83: 63 | AA83: Renfrew Hydro Inc.
Z84: 64 | AA84: Rideau St. Lawrence Distribution Inc.
Z85: 65 | AA85: Sioux Lookout Hydro Inc.
Z86: 66 | AA86: St. Thomas Energy Inc.
Z87: 67 | AA87: Thunder Bay Hydro Electricity Distribution Inc.
Z88: 68 | AA88: Tillsonburg Hydro Inc.
Z89: 69 | AA89: Toronto Hydro-Electric System Limited
Z90: 70 | AA90: Veridian Connections Inc.
Z91: 71 | AA91: Wasaga Distribution Inc.
Z92: 72 | AA92: Waterloo North Hydro Inc.
Z93: 73 | AA93: Welland Hydro-Electric System Corp.
Z94: 74 | AA94: Wellington North Power Inc.
Z95: 75 | AA95: West Coast Huron Energy Inc.
Z96: 76 | AA96: West Perth Power Inc.
Z97: 77 | AA97: Westario Power Inc.
Z98: 78 | AA98: Whitby Hydro Electric Corporation
Z99: 79 | AA99: Woodstock Hydro Services Inc.

Sheet 2. Table of Contents
D11: 1. Info | I11: 6. Taxes_PILs
D13: 2. Table of Contents | I13: 7. Cost_of_Capital
D15: 3. Data_Input_Sheet | I15: 8. Rev_Def_Suff
D17: 4. Rate_Base | I17: 9. Rev_Reqt
D19: 5. Utility Income | I19: 10. Tracking Sheet
A24: Notes:
A25: (1) | B25: Pale green cells represent inputs
A26: (2) | B26: Pale green boxes at the bottom of each page are for additional notes
A27: (3) | B27: Pale yellow cells represent drop-down lists
A28: (4) | B28: Please note that this model uses MACROS. Before starting, please ensure that macros have been enabled.
A29: (5) | B29: Completed versions of the Revenue Requirement Work Form are required to be filed in working Microsoft Excel format.

Sheet 3. Data_Input_Sheet
U1: =CONCATENATE('2. Table of Contents'!$F$6," ",'2. Table of Contents'!$G$6) -> 
B9: Data Input (1)
E12: Initial Application | G12: (2) | I12: =IF(ISBLANK(M12),"","Adjustments") -> Adjustments | M12: Technical Conference | O12: (6) | Q12: =IF(ISBLANK(M12),"","Adjustments") -> Adjustments | U12: Per Board Decision
B15: 1 | C15: Rate Base
C16: Gross Fixed Assets (average) | E16: =('[3]FA Continuity 2015'!$D$46+'[3]FA Continuity 2015'!$G$46)/2 -> 112135566.4 | I16: -1138619.962 | M16: =IF(ISBLANK(E16),0,E16+I16) -> 110996946.4 | U16: =IF(ISBLANK(E16),"",E16+I16+Q16) -> 110996946.4
C17: Accumulated Depreciation (average) | E17: =-('[3]FA Continuity 2015'!$I$46+'[3]FA Continuity 2015'!$L$46)/2 -> -56947420.08 | G17: (5) | I17: 154300.6436 | M17: =IF(ISBLANK(E17),0,E17+I17) -> -56793119.43 | U17: =IF(ISBLANK(E17),"",E17+I17+Q17) -> -56793119.43
C18: Allowance for Working Capital:
C19: Controllable Expenses | E19: ='[3]Return on Capital'!$AK$26 -> 7091420.058 | I19: -7465 | M19: =IF(ISBLANK(E19),0,E19+I19) -> 7083955.058 | U19: =IF(ISBLANK(E19),"",E19+I19+Q19) -> 7083955.058
C20: Cost of Power | E20: ='[3]Return on Capital'!$AK$27 -> 61164704.68 | I20: 3748136.866 | M20: =IF(ISBLANK(E20),0,E20+I20) -> 64912841.54 | U20: =IF(ISBLANK(E20),"",E20+I20+Q20) -> 64912841.54
C21: Working Capital Rate (%) | E21: ='[3]Return on Capital'!$AJ$30 -> 0.13 | G21: (9) | M21: =IF(ISBLANK(E21),0,E21) -> 0.13 | O21: (9) | U21: =IF(ISBLANK(M21),IF(ISBLANK(E21),0,E21),M21) -> 0.13 | W21: (9)
B23: 2 | C23: Utility Income
C24: Operating Revenues:
C25: Distribution Revenue at Current Rates | E25: ='[3]2015 Rev Deficiency'!$D$8 -> 11031905.67 | I25: =IF(ISBLANK(M25),"",IF(ISBLANK(E25),"",M25-E25)) -> -55050.77517 | M25: ='[4]2015 Rev Deficiency'!$D$8 -> 10976854.89 | Q25: =IF(ISBLANK(U25),"",IF(ISBLANK(M25),"",U25-M25)) -> 
C26: Distribution Revenue at Proposed Rates | E26: ='[3]2015 Rev Deficiency'!$D$7+'[3]2015 Rev Deficiency'!$D$8 -> 12695006.37 | I26: =IF(ISBLANK(M26),"",IF(ISBLANK(E26),"",M26-E26)) -> -104763.5543 | M26: =M25+'[4]2015 Rev Deficiency'!$D$7 -> 12590242.81 | Q26: =IF(ISBLANK(U26),"",IF(ISBLANK(M26),"",U26-M26)) -> 
C27: Other Revenue:
C28: Specific Service Charges | E28: =-'[3]Revenue Requirement'!$F$25 -> 578856 | I28: =IF(ISBLANK(M28),"",IF(ISBLANK(E28),"",M28-E28)) -> 0 | M28: =E28 -> 578856 | Q28: =IF(ISBLANK(U28),"",IF(ISBLANK(M28),"",U28-M28)) -> 
C29: Late Payment Charges | E29: =-'[3]Revenue Requirement'!$D$23 -> 136983 | I29: =IF(ISBLANK(M29),"",IF(ISBLANK(E29),"",M29-E29)) -> 0 | M29: =E29 -> 136983 | Q29: =IF(ISBLANK(U29),"",IF(ISBLANK(M29),"",U29-M29)) -> 
C30: Other Distribution Revenue | E30: =-'[3]Revenue Requirement'!$F$49- SUM(E28,E29,E31) -> 338372.32 | I30: =IF(ISBLANK(M30),"",IF(ISBLANK(E30),"",M30-E30)) -> 0 | M30: 338372.32 | Q30: =IF(ISBLANK(U30),"",IF(ISBLANK(M30),"",U30-M30)) -> 
C31: Other Income and Deductions | E31: =-SUM('[3]Revenue Requirement'!$D$45+'[3]Revenue Requirement'!$D$48) -> 99723 | I31: =IF(ISBLANK(M31),"",IF(ISBLANK(E31),"",M31-E31)) -> 0 | M31: 99723 | Q31: =IF(ISBLANK(U31),"",IF(ISBLANK(M31),"",U31-M31)) -> 
D33: Total Revenue Offsets | E33: =SUM(E28:E31) -> 1153934.32 | G33: (7) | I33: =IF(ISBLANK(M33),"",IF(ISBLANK(E33),"",M33-E33)) -> 0 | M33: =SUM(M28:M31) -> 1153934.32 | Q33: =IF(ISBLANK(U33),"",IF(ISBLANK(M33),"",U33-M33)) -> 
C35: Operating Expenses:
C36: OM+A Expenses | E36: ='[3]2015 Rev Deficiency'!$D$13+'[3]2015 Rev Deficiency'!$D$14 -> 7004843.808 | I36: -7465 | M36: =IF(ISBLANK(E36),"",E36+I36) -> 6997378.808 | U36: =IF(ISBLANK(E36),"",E36+I36+Q36) -> 6997378.808
C37: Depreciation/Amortization | E37: ='[3]2015 Rev Deficiency'!$D$16 -> 2569662.197 | I37: -57411.43659 | M37: =IF(ISBLANK(E37),"",E37+I37) -> 2512250.76 | U37: =IF(ISBLANK(E37),"",E37+I37+Q37) -> 2512250.76
C38: Property taxes | E38: ='[3]2015 Rev Deficiency'!$D$17 -> 69876.25 | I38: 0 | M38: =IF(ISBLANK(E38),"",E38+I38) -> 69876.25 | U38: =IF(ISBLANK(E38),"",E38+I38+Q38) -> 69876.25
C39: Capital taxes | E39: =IF(ISBLANK(E48),"",E48) ->  | M39: =IF(ISBLANK(M48),"",M48) ->  | U39: =IF(ISBLANK(U48),"",U48) -> 
C40: Other expenses | E40: ='[3]2015 Rev Deficiency'!$D$15 -> 16700 | I40: 0 | M40: =IF(ISBLANK(E40),"",E40+I40) -> 16700 | U40: =IF(ISBLANK(E40),"",E40+I40+Q40) -> 16700
B42: 3 | C42: Taxes/PILs
C43: Taxable Income:
D44: Adjustments required to arrive at taxable income | E44: ='[3]2015 Rev Deficiency'!$D$32 -> -1706426.185 | G44: (3) | M44: ='[4]2015 Rev Deficiency'!$D$32 -> -1679482.842
C45: Utility Income Taxes and Rates:
C46: Income taxes (not grossed up) | E46: ='[3]2015 Rev Deficiency'!$D$73+E51 -> 127664.0687 | M46: ='[4]2015 Rev Deficiency'!$D$76 -> 160820.1476
C47: Income taxes (grossed up) | E47: =IF(ISBLANK(E46),"",E46/(1-SUM(E49:E50))) -> 162510.2403 | M47: =IF(ISBLANK(M46),"",M46/(1-SUM(M49:M50))) -> 218802.922 | U47: =IF(ISBLANK(U46),"",U46/(1-SUM(U49:U50))) -> 
C48: Capital Taxes
C49: Federal tax (%) | E49: 0.15 | M49: =E49 -> 0.15
C50: Provincial tax (%) | E50: ='[3]2015 Rev Deficiency'!$D$74-E49 -> 0.06442446644 | M50: 0.115
C51: Income Tax Credits | E51: =-'[3]2015 Rev Deficiency'!$D$75 -> -20725 | M51: =-'[5]2015 Rev Deficiency'!$D$75 -> -20725
B53: 4 | C53: Capitalization/Cost of Capital
C54: Capital Structure:
C55: Long-term debt Capitalization Ratio (%) | E55: 0.56 | M55: =E55 -> 0.56
C56: Short-term debt Capitalization Ratio (%) | E56: 0.04 | G56: (8) | M56: =E56 -> 0.04 | O56: (8) | W56: (8)
C57: Common Equity Capitalization Ratio (%) | E57: 0.4 | M57: 0.4
C58: Prefered Shares Capitalization Ratio (%)
E59: =SUM(E55:E58) -> 1 | M59: =SUM(M55:M58) -> 1 | U59: =SUM(U55:U58) -> 0
E60: =IF(ISBLANK(E57),"",IF(SUM(E55:E58)=100%,"","Capital Structure must total 100%")) ->  | M60: =IF(ISBLANK(M57),"",IF(SUM(M55:M58)=100%,"","Capital Structure must total 100%")) ->  | U60: =IF(ISBLANK(U57),"",IF(SUM(U55:U58)=100%,"","Capital Structure must total 100%")) -> 
C61: Cost of Capital
C62: Long-term debt Cost Rate (%) | E62: ='[3]Return on Capital'!$AK$8 -> 0.04384239415 | M62: ='[5]Return on Capital'!$AK$8 -> 0.04241239241
C63: Short-term debt Cost Rate (%) | E63: ='[3]Return on Capital'!$AK$9 -> 0.0211 | M63: ='[5]Return on Capital'!$AK$9 -> 0.0216
C64: Common Equity Cost Rate (%) | E64: ='[3]Return on Capital'!$AK$10 -> 0.0936 | M64: ='[5]Return on Capital'!$AK$10 -> 0.093
C65: Prefered Shares Cost Rate (%)
A68: Notes:
B69: General | C69: Data inputs are required on Sheets 3. Data from Sheet 3 will automatically complete calculations on sheets 4 through 9 (Rate Base through Revenue Requirement). Sheets 4 through 9 do not require any inputs except for notes that the Applicant may wish to enter to support the results. Pale green cells are available on sheets 4 through 9 to enter both footnotes beside key cells and the related text for the notes at the bottom of each sheet.
B70: (1) | C70: All inputs are in dollars ($) except where inputs are individually identified as percentages (%)
B71: (2) | C71: Data in column E is for Application as originally filed. For updated revenue requirement as a result of interrogatory responses, technical or settlement conferences, etc., use colimn M and Adjustments in column I
B72: (3) | C72: Net of addbacks and deductions to arrive at taxable income.
B73: (4) | C73: Average of Gross Fixed Assets at beginning and end of the Test Year
B74: (5) | C74: Average of Accumulated Depreciation at the beginning and end of the Test Year. Enter as a negative amount.
B75: (6) | C75: Select option from drop-down list by clicking on cell M10. This column allows for the application update reflecting the end of discovery or Argument-in-Chief. Also, the outcome of any Settlement Process can be reflected.
B76: (7) | C76: Input total revenue offsets for deriving the base revenue requirement from the service revenue requirement
B77: (8) | C77: 4.0% unless an Applicant has proposed or been approved for another amount.
B78: (9) | C78: Starting with 2013, default Working Capital Allowance factor is 13% (of Cost of Power plus controllable expenses). Alternatively, WCA factor based on lead-lag study or approved WCA factor for another distributor, with supporting rationale.

Sheet 4. Rate_Base
B6: Rate Base and Working Capital
D10: Rate Base
B11: Line No. | D11: Particulars | G11: Initial Application | K11: =IF(ISBLANK('3. Data_Input_Sheet'!M12),"",'3. Data_Input_Sheet'!I12) -> Adjustments | O11: =IF(ISBLANK('3. Data_Input_Sheet'!M12)," ",'3. Data_Input_Sheet'!M12) -> Technical Conference | S11: =IF(ISBLANK('3. Data_Input_Sheet'!Q12),"",'3. Data_Input_Sheet'!Q12) -> Adjustments | W11: ='3. Data_Input_Sheet'!U12 -> Per Board Decision
B13: 1 | D13: Gross Fixed Assets (average) | E13: (3) | G13: ='3. Data_Input_Sheet'!E16 -> 112135566.4 | K13: ='3. Data_Input_Sheet'!I16 -> -1138619.962 | O13: =G13+K13 -> 110996946.4 | S13: ='3. Data_Input_Sheet'!Q16 -> 0 | W13: =G13+K13+S13 -> 110996946.4
B14: 2 | D14: Accumulated Depreciation (average) | E14: (3) | G14: ='3. Data_Input_Sheet'!E17 -> -56947420.08 | K14: ='3. Data_Input_Sheet'!I17 -> 154300.6436 | O14: =G14+K14 -> -56793119.43 | S14: ='3. Data_Input_Sheet'!Q17 -> 0 | W14: =G14+K14+S14 -> -56793119.43
B15: 3 | D15: Net Fixed Assets (average) | E15: (3) | G15: =SUM(G13:G14) -> 55188146.28 | K15: =SUM(K13:K14) -> -984319.3189 | O15: =SUM(O13:O14) -> 54203826.96 | S15: =SUM(S13:S14) -> 0 | W15: =SUM(W13:W14) -> 54203826.96
B17: 4 | D17: Allowance for Working Capital | E17: (1) | G17: =G30 -> 8873296.216 | K17: =K30 -> 486287.3425 | O17: =O30 -> 9359583.558 | S17: =S30 -> 0 | W17: =W30 -> 9359583.558
D18: Total Rate Base | G18: =G17+G15 -> 64061442.5 | K18: =K17+K15 -> -498031.9763 | O18: =O17+O15 -> 63563410.52 | S18: =S17+S15 -> 0 | W18: =W15+W17 -> 63563410.52
B19: 5
C20: (1) | D20: Allowance for Working Capital - Derivation
B24: 6 | D24: Controllable Expenses | G24: ='3. Data_Input_Sheet'!E19 -> 7091420.058 | K24: ='3. Data_Input_Sheet'!I19 -> -7465 | O24: =G24+K24 -> 7083955.058 | S24: ='3. Data_Input_Sheet'!Q19 -> 0 | W24: =G24+K24+S24 -> 7083955.058
B25: 7 | D25: Cost of Power | G25: ='3. Data_Input_Sheet'!E20 -> 61164704.68 | K25: ='3. Data_Input_Sheet'!I20 -> 3748136.866 | O25: =G25+K25 -> 64912841.54 | S25: ='3. Data_Input_Sheet'!Q20 -> 0 | W25: =G25+K25+S25 -> 64912841.54
B26: 8 | D26: Working Capital Base | G26: =SUM(G24:G25) -> 68256124.74 | K26: =K24+K25 -> 3740671.866 | O26: =SUM(O24:O25) -> 71996796.6 | S26: =S24+S25 -> 0 | W26: =SUM(W24:W25) -> 71996796.6
B28: 9 | D28: Working Capital Rate % | E28: (2) | G28: ='3. Data_Input_Sheet'!E21 -> 0.13 | K28: =O28-G28 -> 0 | O28: ='3. Data_Input_Sheet'!M21 -> 0.13 | S28: =W28-O28 -> 0 | W28: ='3. Data_Input_Sheet'!U21 -> 0.13
B30: 10 | D30: Working Capital Allowance | G30: =G26*G28 -> 8873296.216 | K30: =O30-G30 -> 486287.3425 | O30: =O26*O28 -> 9359583.558 | S30: =W30-O30 -> 0 | W30: =W26*W28 -> 9359583.558
B33: Notes
B34: (2) | D34: Some Applicants may have a unique rate as a result of a lead-lag study. The default rate for 2014 cost of service applications is 13%.
B35: (3) | D35: Average of opening and closing balances for the year.

Sheet 5. Utility Income
B11: Utility Income
B13: Line No. | D13: Particulars | F13: Initial Application | J13: =IF(N13="","","Adjustments") -> Adjustments | N13: =IF(ISBLANK('3. Data_Input_Sheet'!M12),"",'3. Data_Input_Sheet'!M12) -> Technical Conference | R13: =IF(N13="","","Adjustments") -> Adjustments | V13: ='3. Data_Input_Sheet'!U12 -> Per Board Decision
D15: Operating Revenues:
B16: 1 | D16: Distribution Revenue (at Proposed Rates) | F16: ='3. Data_Input_Sheet'!E26 -> 12695006.37 | J16: =N16-F16 -> -104763.5543 | N16: ='3. Data_Input_Sheet'!M26 -> 12590242.81 | R16: =V16-N16 -> 0 | V16: =IF(ISBLANK('3. Data_Input_Sheet'!U26),'5. Utility Income'!N16,'3. Data_Input_Sheet'!U26) -> 12590242.81
B17: 2 | D17: Other Revenue | E17: (1) | F17: =F48 -> 1153934.32 | J17: =N17-F17 -> 0 | N17: =N48 -> 1153934.32 | R17: =V17-N17 -> 0 | V17: =V48 -> 1153934.32
F18: =SUM(F16:F17) -> 13848940.69 | J18: =SUM(J16:J17) -> -104763.5543 | N18: =SUM(N16:N17) -> 13744177.13 | R18: =SUM(R16:R17) -> 0 | V18: =SUM(V16:V17) -> 13744177.13
B19: 3 | D19: Total Operating Revenues
D21: Operating Expenses:
B22: 4 | D22: OM+A Expenses | F22: ='3. Data_Input_Sheet'!E36 -> 7004843.808 | J22: ='3. Data_Input_Sheet'!I36 -> -7465 | N22: ='3. Data_Input_Sheet'!M36 -> 6997378.808 | R22: ='3. Data_Input_Sheet'!Q36 -> 0 | V22: ='3. Data_Input_Sheet'!U36 -> 6997378.808
B23: 5 | D23: Depreciation/Amortization | F23: ='3. Data_Input_Sheet'!E37 -> 2569662.197 | J23: ='3. Data_Input_Sheet'!I37 -> -57411.43659 | N23: ='3. Data_Input_Sheet'!M37 -> 2512250.76 | R23: ='3. Data_Input_Sheet'!Q37 -> 0 | V23: ='3. Data_Input_Sheet'!U37 -> 2512250.76
B24: 6 | D24: Property taxes | F24: ='3. Data_Input_Sheet'!E38 -> 69876.25 | J24: ='3. Data_Input_Sheet'!I38 -> 0 | N24: ='3. Data_Input_Sheet'!M38 -> 69876.25 | R24: ='3. Data_Input_Sheet'!Q38 -> 0 | V24: ='3. Data_Input_Sheet'!U38 -> 69876.25
B25: 7 | D25: Capital taxes | F25: ='6. Taxes_PILs'!G25 -> 0 | J25: =N25-F25 -> 0 | N25: ='6. Taxes_PILs'!K25 -> 0 | R25: =V25-N25 -> 0 | V25: ='6. Taxes_PILs'!O25 -> 0
B26: 8 | D26: Other expense | F26: ='3. Data_Input_Sheet'!E40 -> 16700 | J26: ='3. Data_Input_Sheet'!I40 -> 0 | N26: ='3. Data_Input_Sheet'!M40 -> 16700 | R26: ='3. Data_Input_Sheet'!Q40 -> 0 | V26: ='3. Data_Input_Sheet'!U40 -> 16700
F27: =SUM(F22:F26) -> 9661082.255 | J27: =SUM(J22:J26) -> -64876.43659 | N27: =SUM(N22:N26) -> 9596205.818 | R27: =SUM(R22:R26) -> 0 | V27: =SUM(V22:V26) -> 9596205.818
B28: 9 | D28: Subtotal (lines 4 to 8)
B30: 10 | D30: Deemed Interest Expense | F30: ='7. Cost_of_Capital'!P19 -> 1626887.784 | J30: =N30-F30 -> -62278.26369 | N30: ='7. Cost_of_Capital'!P35 -> 1564609.52 | R30: =V30-N30 -> 49630.37274 | V30: ='7. Cost_of_Capital'!P51 -> 1614239.893
B32: 11 | D32: Total Expenses (lines 9 to 10) | F32: =F27+F30 -> 11287970.04 | J32: =J30+J27 -> -127154.7003 | N32: =N30+N27 -> 11160815.34 | R32: =R30+R27 -> 49630.37274 | V32: =V27+V30 -> 11210445.71
B34: 12 | D34: Utility income before income taxes | F34: =F18-(F32) -> 2560970.647 | J34: =J18-(J32) -> 22391.14595 | N34: =N18-(N32) -> 2583361.793 | R34: =R18-(R32) -> -49630.37274 | V34: =V18-(V32) -> 2533731.421
F35: ='6. Taxes_PILs'!G31 -> 162510.2403 | J35: =N35-F35 -> 56292.68167 | N35: ='6. Taxes_PILs'!K31 -> 218802.922 | R35: =V35-N35 -> 0 | V35: =IF('6. Taxes_PILs'!O31=0,N35,'6. Taxes_PILs'!O31) -> 218802.922
B36: 13 | D36: Income taxes (grossed-up)
F37: =F34-F35 -> 2398460.407 | J37: =J34-J35 -> -33901.53572 | N37: =N34-N35 -> 2364558.871 | R37: =R34-R35 -> -49630.37274 | V37: =V34-V35 -> 2314928.499
B38: 14 | D38: Utility net income
B42: Notes
B44: (1) | D44: Specific Service Charges | F44: ='3. Data_Input_Sheet'!E28 -> 578856 | J44: ='3. Data_Input_Sheet'!I28 -> 0 | N44: ='3. Data_Input_Sheet'!M28 -> 578856 | R44: ='3. Data_Input_Sheet'!Q28 ->  | V44: =IF(ISBLANK('3. Data_Input_Sheet'!U28),N44,'3. Data_Input_Sheet'!U28) -> 578856
D45: Late Payment Charges | F45: ='3. Data_Input_Sheet'!E29 -> 136983 | J45: ='3. Data_Input_Sheet'!I29 -> 0 | N45: ='3. Data_Input_Sheet'!M29 -> 136983 | R45: ='3. Data_Input_Sheet'!Q29 ->  | V45: =IF(ISBLANK('3. Data_Input_Sheet'!U29),N45,'3. Data_Input_Sheet'!U29) -> 136983
D46: Other Distribution Revenue | F46: ='3. Data_Input_Sheet'!E30 -> 338372.32 | J46: ='3. Data_Input_Sheet'!I30 -> 0 | N46: ='3. Data_Input_Sheet'!M30 -> 338372.32 | R46: ='3. Data_Input_Sheet'!Q30 ->  | V46: =IF(ISBLANK('3. Data_Input_Sheet'!U30),N46,'3. Data_Input_Sheet'!U30) -> 338372.32
D47: Other Income and Deductions | F47: ='3. Data_Input_Sheet'!E31 -> 99723 | J47: ='3. Data_Input_Sheet'!I31 -> 0 | N47: ='3. Data_Input_Sheet'!M31 -> 99723 | R47: ='3. Data_Input_Sheet'!Q31 ->  | V47: =IF(ISBLANK('3. Data_Input_Sheet'!U31),N47,'3. Data_Input_Sheet'!U31) -> 99723
F48: =SUM(F44:F47) -> 1153934.32 | J48: =SUM(J44:J47) -> 0 | N48: =SUM(N44:N47) -> 1153934.32 | R48: =SUM(R44:R47) -> 0 | V48: =SUM(V44:V47) -> 1153934.32
D49: Total Revenue Offsets

Sheet 6. Taxes_PILs
B9: Taxes/PILs
B12: Line No. | D12: Particulars | G12: Application | K12: =IF(ISBLANK('3. Data_Input_Sheet'!M12),"",'3. Data_Input_Sheet'!M12) -> Technical Conference | O12: ='3. Data_Input_Sheet'!U12 -> Per Board Decision
D14: Determination of Taxable Income
B16: 1 | D16: Utility net income before taxes | G16: ='7. Cost_of_Capital'!P22 -> 2398460.407 | K16: ='7. Cost_of_Capital'!P38 -> 2364558.871 | O16: ='7. Cost_of_Capital'!P54 -> 2379814.09
B18: 2 | D18: Adjustments required to arrive at taxable utility income | G18: ='3. Data_Input_Sheet'!E44 -> -1706426.185 | K18: ='3. Data_Input_Sheet'!M44 -> -1679482.842 | O18: =IF(ISBLANK('3. Data_Input_Sheet'!U44),G18,'3. Data_Input_Sheet'!U44) -> -1706426.185
B20: 3 | D20: Taxable income | G20: =G16+G18 -> 692034.2216 | K20: =K16+K18 -> 685076.0288 | O20: =O16+O18 -> 673387.9044
D22: Calculation of Utility income Taxes
B24: 4 | D24: Income taxes | G24: ='3. Data_Input_Sheet'!E46 -> 127664.0687 | K24: =IF(ISBLANK('3. Data_Input_Sheet'!M46),'6. Taxes_PILs'!G24,'3. Data_Input_Sheet'!M46) -> 160820.1476 | O24: =IF(ISBLANK('3. Data_Input_Sheet'!U46),'6. Taxes_PILs'!K24,'3. Data_Input_Sheet'!U46) -> 160820.1476
B25: 5 | D25: Capital taxes | G25: ='3. Data_Input_Sheet'!E48 -> 0 | K25: =IF(ISBLANK('3. Data_Input_Sheet'!M48),'6. Taxes_PILs'!G25,'3. Data_Input_Sheet'!M48) -> 0 | O25: =IF(ISBLANK('3. Data_Input_Sheet'!U48),'6. Taxes_PILs'!K25,'3. Data_Input_Sheet'!U48) -> 0
G26: =SUM(G24:G25) -> 127664.0687 | K26: =SUM(K24:K25) -> 160820.1476 | O26: =SUM(O24:O25) -> 160820.1476
B27: 6 | D27: Total taxes
B29: 7 | D29: Gross-up of Income Taxes | G29: =(G24/(1-G41))-G24 -> 34846.17156 | K29: =(K24/(1-K41))-K24 -> 57982.77432 | O29: =(O24/(1-O41))-O24 -> 57982.77432
B31: 8 | D31: Grossed-up Income Taxes | G31: =G24+G29 -> 162510.2403 | K31: =K24+K29 -> 218802.922 | O31: =O24+O29 -> 218802.922
B33: 9 | D33: PILs / tax Allowance (Grossed-up Income taxes + Capital taxes) | G33: =G26+G29 -> 162510.2403 | K33: =K29+K26 -> 218802.922 | O33: =O29+O26 -> 218802.922
B35: 10 | D35: Other tax Credits | G35: ='3. Data_Input_Sheet'!E51 -> -20725 | K35: =IF(ISBLANK('3. Data_Input_Sheet'!M51),G35,'3. Data_Input_Sheet'!M51) -> -20725 | O35: =IF(ISBLANK('3. Data_Input_Sheet'!U51),K35,'3. Data_Input_Sheet'!U51) -> -20725
D37: Tax Rates
B39: 11 | D39: Federal tax (%) | G39: ='3. Data_Input_Sheet'!E49 -> 0.15 | K39: =IF(ISBLANK('3. Data_Input_Sheet'!M49),G39,'3. Data_Input_Sheet'!M49) -> 0.15 | O39: =IF(ISBLANK('3. Data_Input_Sheet'!U49),K39,'3. Data_Input_Sheet'!U49) -> 0.15
B40: 12 | D40: Provincial tax (%) | G40: ='3. Data_Input_Sheet'!E50 -> 0.06442446644 | K40: =IF(ISBLANK('3. Data_Input_Sheet'!M50),G40,'3. Data_Input_Sheet'!M50) -> 0.115 | O40: =IF(ISBLANK('3. Data_Input_Sheet'!U50),K40,'3. Data_Input_Sheet'!U50) -> 0.115
B41: 13 | D41: Total tax rate (%) | G41: =G39+G40 -> 0.2144244664 | K41: =K39+K40 -> 0.265 | O41: =O39+O40 -> 0.265
B44: Notes
D45: Capital Taxes not applicable after July 1, 2010 (i.e. for 2011 and later test years)

Sheet 7. Cost_of_Capital
B5: Capitalization/Cost of Capital
B11: Line No. | D11: Particulars | F11: Capitalization Ratio | L11: Cost Rate | P11: Return
F13: Initial Application
F15: (%) | J15: ($) | L15: (%) | P15: ($)
D16: Debt
B17: 1 | D17: Long-term Debt | F17: ='3. Data_Input_Sheet'!E55 -> 0.56 | J17: =$J$26*F17 -> 35874407.8 | L17: ='3. Data_Input_Sheet'!E62 -> 0.04384239415 | P17: =L17*J17 -> 1572819.927
B18: 2 | D18: Short-term Debt | F18: ='3. Data_Input_Sheet'!E56 -> 0.04 | J18: =$J$26*F18 -> 2562457.7 | L18: ='3. Data_Input_Sheet'!E63 -> 0.0211 | P18: =L18*J18 -> 54067.85747
B19: 3 | D19: Total Debt | F19: =SUM(F17:F18) -> 0.6 | J19: =SUM(J17:J18) -> 38436865.5 | L19: =IF(F19=0,0,SUMPRODUCT(F17:F18,L17:L18)/F19) -> 0.04232623454 | P19: =SUM(P17:P18) -> 1626887.784
D21: Equity
B22: 4 | D22: Common Equity | F22: ='3. Data_Input_Sheet'!E57 -> 0.4 | J22: =$J$26*F22 -> 25624577 | L22: ='3. Data_Input_Sheet'!E64 -> 0.0936 | P22: =L22*J22 -> 2398460.407
B23: 5 | D23: Preferred Shares | F23: ='3. Data_Input_Sheet'!E58 -> 0 | J23: =$J$26*F23 -> 0 | L23: ='3. Data_Input_Sheet'!E65 -> 0 | P23: =L23*J23 -> 0
B24: 6 | D24: Total Equity | F24: =SUM(F22:F23) -> 0.4 | J24: =SUM(J22:J23) -> 25624577 | L24: =IF(F24=0,0,SUMPRODUCT(F22:F23,L22:L23)/F24) -> 0.0936 | P24: =SUM(P22:P23) -> 2398460.407
B26: 7 | D26: Total | F26: =SUM(F19,F24) -> 1 | J26: ='4. Rate_Base'!G18 -> 64061442.5 | L26: =(L19*F19)+(L24*F24) -> 0.06283574072 | P26: =P19+P24 -> 4025348.191
F29: ='1. Info'!AC1 -> Technical Conference
F31: (%) | J31: ($) | L31: (%) | P31: ($)
D32: Debt
B33: 1 | D33: Long-term Debt | F33: ='3. Data_Input_Sheet'!M55 -> 0.56 | J33: =$J$42*F33 -> 35595509.89 | L33: ='3. Data_Input_Sheet'!M62 -> 0.04241239241 | P33: =L33*J33 -> 1509690.734
B34: 2 | D34: Short-term Debt | F34: ='3. Data_Input_Sheet'!M56 -> 0.04 | J34: =$J$42*F34 -> 2542536.421 | L34: ='3. Data_Input_Sheet'!M63 -> 0.0216 | P34: =L34*J34 -> 54918.78669
B35: 3 | D35: Total Debt | F35: =SUM(F33:F34) -> 0.6 | J35: =SUM(J33:J34) -> 38138046.31 | L35: =IF(F35=0,0,SUMPRODUCT(F33:F34,L33:L34)/F35) -> 0.04102489959 | P35: =SUM(P33:P34) -> 1564609.52
D37: Equity
B38: 4 | D38: Common Equity | F38: ='3. Data_Input_Sheet'!M57 -> 0.4 | J38: =$J$42*F38 -> 25425364.21 | L38: ='3. Data_Input_Sheet'!M64 -> 0.093 | P38: =L38*J38 -> 2364558.871
B39: 5 | D39: Preferred Shares | F39: ='3. Data_Input_Sheet'!M58 -> 0 | J39: =$J$42*F39 -> 0 | L39: ='3. Data_Input_Sheet'!M65 -> 0 | P39: =L39*J39 -> 0
B40: 6 | D40: Total Equity | F40: =SUM(F38:F39) -> 0.4 | J40: =SUM(J38:J39) -> 25425364.21 | L40: =IF(F40=0,0,SUMPRODUCT(F38:F39,L38:L39)/F40) -> 0.093 | P40: =SUM(P38:P39) -> 2364558.871
B42: 7 | D42: Total | F42: =F35+F40 -> 1 | J42: ='4. Rate_Base'!O18 -> 63563410.52 | L42: =(L35*F35)+(L40*F40) -> 0.06181493975 | P42: =P35+P40 -> 3929168.392
F45: Per Board Decision
F47: (%) | J47: ($) | L47: (%) | P47: ($)
D48: Debt
B49: 8 | D49: Long-term Debt | F49: =IF(ISBLANK('3. Data_Input_Sheet'!U55),F33,'3. Data_Input_Sheet'!U55) -> 0.56 | J49: =$J$58*F49 -> 35595509.89 | L49: =IF(ISBLANK('3. Data_Input_Sheet'!U62),L17,'3. Data_Input_Sheet'!U62) -> 0.04384239415 | P49: =L49*J49 -> 1560592.375
B50: 9 | D50: Short-term Debt | F50: =IF(ISBLANK('3. Data_Input_Sheet'!U56),F34,'3. Data_Input_Sheet'!U56) -> 0.04 | J50: =$J$58*F50 -> 2542536.421 | L50: =IF(ISBLANK('3. Data_Input_Sheet'!U63),L18,'3. Data_Input_Sheet'!U63) -> 0.0211 | P50: =L50*J50 -> 53647.51848
B51: 10 | D51: Total Debt | F51: =SUM(F49:F50) -> 0.6 | J51: =SUM(J49:J50) -> 38138046.31 | L51: =IF(F51=0,0,SUMPRODUCT(F49:F50,L49:L50)/F51) -> 0.04232623454 | P51: =SUM(P49:P50) -> 1614239.893
D53: Equity
B54: 11 | D54: Common Equity | F54: =IF(ISBLANK('3. Data_Input_Sheet'!U57),F38,'3. Data_Input_Sheet'!U57) -> 0.4 | J54: =$J$58*F54 -> 25425364.21 | L54: =IF(ISBLANK('3. Data_Input_Sheet'!U64),L22,'3. Data_Input_Sheet'!U64) -> 0.0936 | P54: =L54*J54 -> 2379814.09
B55: 12 | D55: Preferred Shares | F55: =IF(ISBLANK('3. Data_Input_Sheet'!U58),F39,'3. Data_Input_Sheet'!U58) -> 0 | J55: =$J$58*F55 -> 0 | L55: =IF(ISBLANK('3. Data_Input_Sheet'!U65),L23,'3. Data_Input_Sheet'!U65) -> 0 | P55: =L55*J55 -> 0
B56: 13 | D56: Total Equity | F56: =SUM(F54:F55) -> 0.4 | J56: =SUM(J54:J55) -> 25425364.21 | L56: =IF(F56=0,0,SUMPRODUCT(F54:F55,L54:L55)/F56) -> 0.0936 | P56: =SUM(P54:P55) -> 2379814.09
B58: 14 | D58: Total | F58: =F51+F56 -> 1 | J58: ='4. Rate_Base'!W18 -> 63563410.52 | L58: =(L51*F51)+(L56*F56) -> 0.06283574072 | P58: =P51+P56 -> 3994053.983
B61: Notes
B62: (1) | D62: ='3. Data_Input_Sheet'!C71 -> Data in column E is for Application as originally filed. For updated revenue requirement as a result of interrogatory responses, technical or settlement conferences, etc., use colimn M and Adjustments in column I

Sheet 8. Rev_Def_Suff
P1: =CONCATENATE('2. Table of Contents'!$F$6," ",'2. Table of Contents'!$G$6) -> 
B10: Revenue Deficiency/Sufficiency
F13: Initial Application | J13: =IF(ISBLANK('3. Data_Input_Sheet'!M12),"",'3. Data_Input_Sheet'!M12) -> Technical Conference | N13: ='3. Data_Input_Sheet'!U12 -> Per Board Decision
B15: Line No. | D15: Particulars | F15: At Current Approved Rates | H15: At Proposed Rates | J15: At Current Approved Rates | L15: At Proposed Rates | N15: At Current Approved Rates | P15: At Proposed Rates
B19: 1 | D19: Revenue Deficiency from Below | H19: =F52 -> 1663100.7 | L19: =J52 -> 1613387.921 | P19: =N52 -> 1683773.693
B20: 2 | D20: Distribution Revenue | F20: ='3. Data_Input_Sheet'!E25 -> 11031905.67 | H20: ='3. Data_Input_Sheet'!E26-H19 -> 11031905.67 | J20: =IF(ISBLANK('3. Data_Input_Sheet'!M25),'3. Data_Input_Sheet'!E25,'3. Data_Input_Sheet'!M25) -> 10976854.89 | L20: =IF(ISBLANK('3. Data_Input_Sheet'!M26),'3. Data_Input_Sheet'!E26-L19,'3. Data_Input_Sheet'!M26-L19) -> 10976854.89 | N20: =IF(ISBLANK('3. Data_Input_Sheet'!U25),'3. Data_Input_Sheet'!M25,'3. Data_Input_Sheet'!U25) -> 10976854.89 | P20: =IF(ISBLANK('3. Data_Input_Sheet'!U26),'3. Data_Input_Sheet'!M26-P19,'3. Data_Input_Sheet'!U26-P19) -> 10906469.12
B21: 3 | D21: Other Operating Revenue Offsets - net | F21: ='5. Utility Income'!F48 -> 1153934.32 | H21: ='5. Utility Income'!F48 -> 1153934.32 | J21: ='5. Utility Income'!N48 -> 1153934.32 | L21: =J21 -> 1153934.32 | N21: ='5. Utility Income'!V48 -> 1153934.32 | P21: ='5. Utility Income'!V48 -> 1153934.32
B22: 4 | D22: Total Revenue | F22: =SUM(F20:F21) -> 12185839.99 | H22: =SUM(H19:H21) -> 13848940.69 | J22: =SUM(J20:J21) -> 12130789.21 | L22: =SUM(L19:L21) -> 13744177.13 | N22: =SUM(N20:N21) -> 12130789.21 | P22: =SUM(P19:P21) -> 13744177.13
B24: 5 | D24: Operating Expenses | F24: ='5. Utility Income'!F27 -> 9661082.255 | H24: ='5. Utility Income'!F27 -> 9661082.255 | J24: ='5. Utility Income'!N27 -> 9596205.818 | L24: ='5. Utility Income'!N27 -> 9596205.818 | N24: ='5. Utility Income'!V27 -> 9596205.818 | P24: ='5. Utility Income'!V27 -> 9596205.818
B25: 6 | D25: Deemed Interest Expense | F25: ='5. Utility Income'!F30 -> 1626887.784 | H25: ='5. Utility Income'!F30 -> 1626887.784 | J25: ='5. Utility Income'!N30 -> 1564609.52 | L25: ='5. Utility Income'!N30 -> 1564609.52 | N25: ='5. Utility Income'!V30 -> 1614239.893 | P25: ='5. Utility Income'!V30 -> 1614239.893
B26: 8 | D26: Total Cost and Expenses | F26: =SUM(F24:F25) -> 11287970.04 | H26: =SUM(H24:H25) -> 11287970.04 | J26: =SUM(J24:J25) -> 11160815.34 | L26: =SUM(L24:L25) -> 11160815.34 | N26: =SUM(N24:N25) -> 11210445.71 | P26: =SUM(P24:P25) -> 11210445.71
B28: 9 | D28: Utility Income Before Income Taxes | F28: =F22-F26 -> 897869.9474 | H28: =H22-H26 -> 2560970.647 | J28: =J22-J26 -> 969973.8725 | L28: =L22-L26 -> 2583361.793 | N28: =N22-N26 -> 920343.4998 | P28: =P22-P26 -> 2533731.421
B30: 10 | D30: Tax Adjustments to Accounting Income per 2013 PILs model | F30: ='3. Data_Input_Sheet'!E44 -> -1706426.185 | H30: ='3. Data_Input_Sheet'!E44 -> -1706426.185 | J30: =IF(ISBLANK('3. Data_Input_Sheet'!M44),'3. Data_Input_Sheet'!E44,'3. Data_Input_Sheet'!M44) -> -1679482.842 | L30: =IF(ISBLANK('3. Data_Input_Sheet'!M44),'3. Data_Input_Sheet'!E44,'3. Data_Input_Sheet'!M44) -> -1679482.842 | N30: =IF(ISBLANK('3. Data_Input_Sheet'!U44),'3. Data_Input_Sheet'!M44,'3. Data_Input_Sheet'!U44) -> -1679482.842 | P30: =IF(ISBLANK('3. Data_Input_Sheet'!U44),'3. Data_Input_Sheet'!M44,'3. Data_Input_Sheet'!U44) -> -1679482.842
B31: 11 | D31: Taxable Income | F31: =SUM(F28:F30) -> -808556.238 | H31: =SUM(H28:H30) -> 854544.4619 | J31: =SUM(J28+J30) -> -709508.9699 | L31: =L28+L30 -> 903878.9508 | N31: =SUM(N28+N30) -> -759139.3427 | P31: =P28+P30 -> 854248.578
B33: 12 | D33: Income Tax Rate | F33: ='6. Taxes_PILs'!G41 -> 0.2144244664 | H33: ='6. Taxes_PILs'!G41 -> 0.2144244664 | J33: ='6. Taxes_PILs'!K41 -> 0.265 | L33: ='6. Taxes_PILs'!K41 -> 0.265 | N33: ='6. Taxes_PILs'!O41 -> 0.265 | P33: ='6. Taxes_PILs'!O41 -> 0.265
B34: 13 | D34: Income Tax on Taxable Income | F34: =F31*F33 -> -173374.2399 | H34: =H31*H33 -> 183235.2403 | J34: =J31*J33 -> -188019.877 | L34: =L31*L33 -> 239527.922 | N34: =N31*N33 -> -201171.9258 | P34: =P31*P33 -> 226375.8732
B35: 14 | D35: Income Tax Credits | F35: ='3. Data_Input_Sheet'!E51 -> -20725 | H35: ='3. Data_Input_Sheet'!E51 -> -20725 | J35: =IF(ISBLANK('3. Data_Input_Sheet'!M51),'3. Data_Input_Sheet'!E51,'3. Data_Input_Sheet'!M51) -> -20725 | L35: =IF(ISBLANK('3. Data_Input_Sheet'!M51),'3. Data_Input_Sheet'!E51,'3. Data_Input_Sheet'!M51) -> -20725 | N35: =IF(ISBLANK('3. Data_Input_Sheet'!U51),'3. Data_Input_Sheet'!M51,'3. Data_Input_Sheet'!U51) -> -20725 | P35: =IF(ISBLANK('3. Data_Input_Sheet'!U51),'3. Data_Input_Sheet'!M51,'3. Data_Input_Sheet'!U51) -> -20725
B36: 15 | D36: Utility Net Income | F36: =F28-SUM(F34:F35) -> 1091969.187 | H36: ='5. Utility Income'!F37 -> 2398460.407 | J36: =J28-SUM(J34:J35) -> 1178718.75 | L36: ='5. Utility Income'!N37 -> 2364558.871 | N36: =N28-SUM(N34:N35) -> 1142240.426 | P36: ='5. Utility Income'!V37 -> 2314928.499
B38: 16 | D38: Utility Rate Base | F38: ='4. Rate_Base'!G18 -> 64061442.5 | H38: ='4. Rate_Base'!G18 -> 64061442.5 | J38: ='4. Rate_Base'!O18 -> 63563410.52 | L38: ='4. Rate_Base'!O18 -> 63563410.52 | N38: ='4. Rate_Base'!W18 -> 63563410.52 | P38: ='4. Rate_Base'!W18 -> 63563410.52
B40: 17 | D40: Deemed Equity Portion of Rate Base | F40: ='7. Cost_of_Capital'!J24 -> 25624577 | H40: =F40 -> 25624577 | J40: ='7. Cost_of_Capital'!J40 -> 25425364.21 | L40: =J40 -> 25425364.21 | N40: ='7. Cost_of_Capital'!J56 -> 25425364.21 | P40: =N40 -> 25425364.21
B42: 18 | D42: Income/(Equity Portion of Rate Base) | F42: =IF(F40=0,0,F36/F40) -> 0.04261413515 | H42: =IF(H40=0,0,H36/H40) -> 0.0936 | J42: =IF(J40=0,0,J36/J40) -> 0.04635995536 | L42: =IF(L40=0,0,L36/L40) -> 0.093 | N42: =IF(N40=0,0,N36/N40) -> 0.04492523357 | P42: =IF(P40=0,0,P36/P40) -> 0.09104799757
B43: 19 | D43: Target Return - Equity on Rate Base | F43: ='7. Cost_of_Capital'!L24 -> 0.0936 | H43: ='7. Cost_of_Capital'!L24 -> 0.0936 | J43: ='7. Cost_of_Capital'!L40 -> 0.093 | L43: ='7. Cost_of_Capital'!L40 -> 0.093 | N43: ='7. Cost_of_Capital'!L56 -> 0.0936 | P43: ='7. Cost_of_Capital'!L56 -> 0.0936
B44: 20 | D44: Deficiency/Sufficiency in Return on Equity | F44: =F42-F43 -> -0.05098586485 | H44: =H42-H43 -> 0 | J44: =J42-J43 -> -0.04664004464 | L44: =L42-L43 -> 0 | N44: =N42-N43 -> -0.04867476643 | P44: =P42-P43 -> -0.002552002431
B46: 21 | D46: Indicated Rate of Return | F46: =IF(F38=0,0,(F36+F25)/F38) -> 0.04244139478 | H46: =IF(H38=0,0,(H36+H25)/H38) -> 0.06283574072 | J46: =IF(J38=0,0,(J36+J25)/J38) -> 0.04315892189 | L46: =IF(L40=0,0,(L36+L25)/L38) -> 0.06181493975 | N46: =IF(N38=0,0,(N36+N25)/N38) -> 0.04336583415 | P46: =IF(P40=0,0,(P36+P25)/P38) -> 0.06181493975
B47: 22 | D47: Requested Rate of Return on Rate Base | F47: ='7. Cost_of_Capital'!L26 -> 0.06283574072 | H47: ='7. Cost_of_Capital'!L26 -> 0.06283574072 | J47: ='7. Cost_of_Capital'!L42 -> 0.06181493975 | L47: ='7. Cost_of_Capital'!L42 -> 0.06181493975 | N47: ='7. Cost_of_Capital'!L58 -> 0.06283574072 | P47: ='7. Cost_of_Capital'!L58 -> 0.06283574072
B48: 23 | D48: Deficiency/Sufficiency in Rate of Return | F48: =F46-F47 -> -0.02039434594 | H48: =H46-H47 -> 0 | J48: =J46-J47 -> -0.01865601786 | L48: =L46-L47 -> 0 | N48: =N46-N47 -> -0.01946990657 | P48: =P46-P47 -> -0.001020800972
B50: 24 | D50: Target Return on Equity | F50: =H50 -> 2398460.407 | H50: ='7. Cost_of_Capital'!P24 -> 2398460.407 | J50: =L50 -> 2364558.871 | L50: ='7. Cost_of_Capital'!P40 -> 2364558.871 | N50: =P50 -> 2379814.09 | P50: ='7. Cost_of_Capital'!P56 -> 2379814.09
B51: 25 | D51: Revenue Deficiency/(Sufficiency) | F51: =F50-F36 -> 1306491.22 | H51: =H38*H48 -> 0 | J51: =J50-J36 -> 1185840.122 | L51: =L38*L48 -> 0 | N51: =N50-N36 -> 1237573.664 | P51: =P38*P48 -> -64885.59127
B52: 26 | D52: Gross Revenue Deficiency/(Sufficiency) | F52: =F51/(1-F33) -> 1663100.7 | G52: (1) | J52: =J51/(1-J33) -> 1613387.921 | K52: (1) | N52: =N51/(1-N33) -> 1683773.693 | O52: (1)
B55: Notes:
B56: (1) | D56: Revenue Deficiency/Sufficiency divided by (1 - Tax Rate)

Sheet 9. Rev_Reqt
B11: Revenue Requirement
B13: Line No. | D13: Particulars | F13: Application | J13: =IF(ISBLANK('3. Data_Input_Sheet'!M12),"",'3. Data_Input_Sheet'!M12) -> Technical Conference | N13: ='3. Data_Input_Sheet'!U12 -> Per Board Decision
B15: 1 | D15: OM&A Expenses | F15: ='5. Utility Income'!F22 -> 7004843.808 | J15: ='5. Utility Income'!N22 -> 6997378.808 | N15: ='5. Utility Income'!V22 -> 6997378.808
B16: 2 | D16: Amortization/Depreciation | F16: ='5. Utility Income'!F23 -> 2569662.197 | J16: ='5. Utility Income'!N23 -> 2512250.76 | N16: ='5. Utility Income'!V23 -> 2512250.76
B17: 3 | D17: Property Taxes | F17: ='5. Utility Income'!F24 -> 69876.25 | J17: ='5. Utility Income'!N24 -> 69876.25 | N17: ='5. Utility Income'!V24 -> 69876.25
B18: 4 | D18: Capital Taxes | F18: ='6. Taxes_PILs'!G25 -> 0 | J18: ='6. Taxes_PILs'!K25 -> 0 | N18: ='6. Taxes_PILs'!O25 -> 0
B19: 5 | D19: Income Taxes (Grossed up) | F19: ='6. Taxes_PILs'!G33-F18 -> 162510.2403 | J19: ='6. Taxes_PILs'!K33-J18 -> 218802.922 | N19: ='6. Taxes_PILs'!O33-N18 -> 218802.922
B20: 6 | D20: Other Expenses | F20: ='5. Utility Income'!F26 -> 16700 | J20: ='5. Utility Income'!N26 -> 16700 | N20: ='5. Utility Income'!V26 -> 16700
B21: 7 | D21: Return
D22: Deemed Interest Expense | F22: ='8. Rev_Def_Suff'!F25 -> 1626887.784 | J22: ='8. Rev_Def_Suff'!L25 -> 1564609.52 | N22: ='8. Rev_Def_Suff'!P25 -> 1614239.893
D23: Return on Deemed Equity | F23: ='8. Rev_Def_Suff'!F50 -> 2398460.407 | J23: ='8. Rev_Def_Suff'!L50 -> 2364558.871 | N23: ='8. Rev_Def_Suff'!P50 -> 2379814.09
B25: 8 | D25: Service Revenue Requirement (before Revenues) | F25: =SUM(F15:F23) -> 13848940.69 | J25: =SUM(J15:J23) -> 13744177.13 | N25: =SUM(N15:O23) -> 13809062.72
B27: 9 | D27: Revenue Offsets | F27: ='3. Data_Input_Sheet'!E33 -> 1153934.32 | J27: ='3. Data_Input_Sheet'!M33 -> 1153934.32 | N27: ='3. Data_Input_Sheet'!U33 -> 0
B28: 10 | D28: Base Revenue Requirement | F28: =F25-F27 -> 12695006.37 | J28: =J25-J27 -> 12590242.81 | N28: =N25-N27 -> 13809062.72
D29: (excluding Tranformer Owership Allowance credit adjustment)
B31: 11 | D31: Distribution revenue | F31: ='5. Utility Income'!F16 -> 12695006.37 | J31: ='5. Utility Income'!N16 -> 12590242.81 | N31: ='5. Utility Income'!V16 -> 12590242.81
B32: 12 | D32: Other revenue | F32: ='5. Utility Income'!F17 -> 1153934.32 | J32: ='5. Utility Income'!N17 -> 1153934.32 | N32: ='5. Utility Income'!V17 -> 1153934.32
F33: =SUM(F31:F32) -> 13848940.69 | J33: =SUM(J31:J32) -> 13744177.13 | N33: =SUM(N31:N32) -> 13744177.13
B34: 13 | D34: Total revenue
F35: =F33-F25 -> 0 | J35: =J33-J25 -> 0 | N35: =N33-N25 -> -64885.59127
B36: 14 | D36: Difference (Total Revenue Less Distribution Revenue Requirement before Revenues) | H36: (1) | L36: (1) | Q36: (1)
B38: Notes
B39: (1) | D39: Line 11 - Line 8

Sheet 10. Tracking_Sheet
B14: Tracking Form
B15: The last row shown is the most current estimate of the cost of service data reflecting the original application and any updates provided by the applicant distributor (for updated evidence, responses to interrogatories, undertakings, etc.) Please ensure a Reference (Column B) and/or Item Description (Column C) is entered. Please note that unused rows will automatically be hidden and the PRINT AREA set when the PRINT BUTTON on Sheet 1 is activated. (1) Short reference to evidence material (interrogatory response, undertaking, exhibit number, Board Decision, Code, Guideline, Report of the Board, etc.) (2) Short description of change, issue, etc. 60 Tracking Rows have been provided below. If you require more, please contact Industry Relations @ IndustryRelations@ontarioenergyboard.ca.
B16: Summary of Proposed Changes
D18: Cost of Capital | F18: Rate Base and Capital Expenditures | I18: Operating Expenses | L18: Revenue Requirement
B19: Reference (1) | C19: Item / Description (2) | D19: Regulated Return on Capital | E19: Regulated Rate of Return | F19: Rate Base | G19: Working Capital | H19: Working Capital Allowance ($) | I19: Amortization / Depreciation | J19: Taxes/PILs | K19: OM&A | L19: Service Revenue Requirement | M19: Other Revenues | N19: Base Revenue Requirement | O19: Grossed up Revenue Deficiency / Sufficiency
C21: Original Application | D21: ='7. Cost_of_Capital'!P26 -> 4025348.191 | E21: ='7. Cost_of_Capital'!L26 -> 0.06283574072 | F21: ='4. Rate_Base'!G18 -> 64061442.5 | G21: ='4. Rate_Base'!G26 -> 68256124.74 | H21: ='4. Rate_Base'!G30 -> 8873296.216 | I21: ='9. Rev_Reqt'!F16 -> 2569662.197 | J21: ='9. Rev_Reqt'!F19 -> 162510.2403 | K21: ='9. Rev_Reqt'!F15 -> 7004843.808 | L21: ='9. Rev_Reqt'!F25 -> 13848940.69 | M21: ='9. Rev_Reqt'!F32 -> 1153934.32 | N21: ='9. Rev_Reqt'!F28 -> 12695006.37 | O21: ='8. Rev_Def_Suff'!F52 -> 1663100.7
A23: 1 | B23: 2-Energy Probe-28 | C23: Original Application with 2014 actual capital | D23: ='[6]2015 Rev Deficiency'!$D$57 -> 3963497.758 | E23: ='[6]2015 Rev Deficiency'!$D$59 -> 0.06283574072 | F23: ='[6]2015 Rev Deficiency'!$D$49 -> 63077123.18 | G23: ='[6]Return on Capital'!$AK$28 -> 68256124.74 | H23: ='[6]Return on Capital'!$AK$30 -> 8873296.216 | I23: ='[6]2015 Rev Deficiency'!$D$16 -> 2512250.76 | J23: ='[6]2015 Rev Deficiency'!$D$77 -> 165072.1545 | K23: ='[6]2015 Rev Deficiency'!$D$13+'[6]2015 Rev Deficiency'!$D$14 -> 7004843.808 | L23: ='[6]2015 Rev Deficiency'!$D$10 -> 13732240.73 | M23: ='[6]2015 Rev Deficiency'!$D$9 -> 1153934.32 | N23: ='[6]2015 Rev Deficiency'!$D$7+'[6]2015 Rev Deficiency'!$D$8 -> 12578306.41 | O23: ='[6]2015 Rev Deficiency'!$D$7 -> 1546400.744 | Q23: =IF(AND(ISBLANK(B23), ISBLANK(C23)), "X", "") -> 
C24: Change | D24: =IF(D23="","",D23-D21) -> -61850.43351 | E24: =IF(E23="","",E23-E21) -> 0 | F24: -984319.3189 | G24: 0 | H24: 0 | I24: -57411.43659 | J24: 2561.914205 | K24: 0 | L24: -116699.9559 | M24: 0 | N24: -116699.9559 | O24: -116699.9559
A26: 2 | B26: 5-Staff-18 | C26: #1 with Nov 20-14 cost of capital parameters and new rate on 2015 SWAP | D26: ='[7]2015 Rev Deficiency'!$D$57 -> 3899108.569 | E26: ='[7]2015 Rev Deficiency'!$D$59 -> 0.06181493975 | F26: ='[7]2015 Rev Deficiency'!$D$49 -> 63077123.18 | G26: ='[7]Return on Capital'!$AK$28 -> 68256124.74 | H26: ='[7]Return on Capital'!$AK$30 -> 8873296.216 | I26: ='[7]Revenue Requirement'!$C$6 -> 2512250.76 | J26: ='[7]2015 Rev Deficiency'!$D$77 -> 159736.6893 | K26: ='[7]2015 Rev Deficiency'!$D$13+'[7]2015 Rev Deficiency'!$D$14 -> 7004843.808 | L26: ='[7]2015 Rev Deficiency'!$D$10 -> 13662516.08 | M26: ='[7]2015 Rev Deficiency'!$D$9 -> 1153934.32 | N26: ='[7]2015 Rev Deficiency'!$D$7+'[7]2015 Rev Deficiency'!$D$8 -> 12508581.76 | O26: ='[7]2015 Rev Deficiency'!$D$7 -> 1476676.09 | Q26: =IF(AND(ISBLANK(B26), ISBLANK(C26)), "X", "") -> 
C27: Change | D27: =IF(D26="","",D26-D23) -> -64389.18868 | E27: -0.001020800972 | F27: 0 | G27: 0 | H27: 0 | I27: 0 | J27: -5335.465211 | K27: 0 | L27: -69724.65389 | M27: 0 | N27: -69724.65389 | O27: =IF(O26="","",O26-O23) -> -69724.65389
A29: 3 | B29: 3-Energy Probe-34 | C29: #2 with updated load forecast | D29: ='[5]2015 Rev Deficiency'!$D$57 -> 3897011.038 | E29: ='[5]2015 Rev Deficiency'!$D$59 -> 0.06181493975 | F29: ='[5]2015 Rev Deficiency'!$D$49 -> 63043190.75 | G29: ='[5]Return on Capital'!$AK$28 -> 67995106.09 | H29: ='[5]Return on Capital'!$AK$30 -> 8839363.791 | I29: ='[5]Revenue Requirement'!$C$6 -> 2512250.76 | J29: ='[5]2015 Rev Deficiency'!$D$77 -> 159292.0346 | K29: ='[5]2015 Rev Deficiency'!$D$13+'[5]2015 Rev Deficiency'!$D$14 -> 7004843.808 | L29: ='[5]2015 Rev Deficiency'!$D$10 -> 13659973.89 | M29: ='[5]2015 Rev Deficiency'!$D$9 -> 1153934.32 | N29: ='[5]2015 Rev Deficiency'!$D$7+'[5]2015 Rev Deficiency'!$D$8 -> 12506039.57 | O29: ='[5]2015 Rev Deficiency'!$D$7 -> 1562539.119 | Q29: =IF(AND(ISBLANK(B29), ISBLANK(C29)), "X", "") -> 
C30: Change | D30: =IF(D29="","",D29-D26) -> -2097.53076 | E30: -1.387778781e-17 | F30: -33932.42425 | G30: -261018.648 | H30: -33932.42425 | I30: 0 | J30: -444.6546422 | K30: 0 | L30: -2542.185403 | M30: 0 | N30: -2542.185403 | O30: =IF(O29="","",O29-O26) -> 85863.0293
A32: 4 | B32: JT1.8 and JT1.14 | C32: #3 with updated load forecast_V2 plus COP price changes | D32: ='[8]2015 Rev Deficiency'!$D$57 -> 3929228.38 | E32: ='[8]2015 Rev Deficiency'!$D$59 -> 0.06181493975 | F32: ='[8]2015 Rev Deficiency'!$D$49 -> 63564380.97 | G32: ='[8]Return on Capital'!$AK$28 -> 72004261.6 | H32: ='[8]Return on Capital'!$AK$30 -> 9360554.008 | I32: ='[8]2015 Rev Deficiency'!$D$16 -> 2512250.76 | J32: ='[8]2015 Rev Deficiency'!$D$25 -> 166125.6567 | K32: ='[8]2015 Rev Deficiency'!$D$13+'[8]2015 Rev Deficiency'!$D$14 -> 7004843.808 | L32: ='[8]2015 Rev Deficiency'!$D$10 -> 13699024.85 | M32: ='[8]2015 Rev Deficiency'!$D$9 -> 1153934.32 | N32: ='[8]2015 Rev Deficiency'!$D$7+'[8]2015 Rev Deficiency'!$D$8 -> 12545090.53 | O32: ='[8]2015 Rev Deficiency'!$D$7 -> 1568235.644 | Q32: =IF(AND(ISBLANK(B32), ISBLANK(C32)), "X", "") -> 
C33: Change | D33: =IF(D32="","",D32-D29) -> 32217.34185 | E33: =IF(E32="","",E32-E29) -> 6.938893904e-18 | F33: =IF(F32="","",F32-F29) -> 521190.2168 | G33: =IF(G32="","",G32-G29) -> 4009155.514 | H33: =IF(H32="","",H32-H29) -> 521190.2168 | I33: =IF(I32="","",I32-I29) -> 0 | J33: =IF(J32="","",J32-J29) -> 6833.622041 | K33: =IF(K32="","",K32-K29) -> 0 | L33: =IF(L32="","",L32-L29) -> 39050.96389 | M33: =IF(M32="","",M32-M29) -> 0 | N33: =IF(N32="","",N32-N29) -> 39050.96389 | O33: =IF(O32="","",O32-O29) -> 5696.524361
A35: 5 | B35: 1-Energy Probe-15 | C35: #4 with reduced OM&A shown in reference | D35: ='[9]2015 Rev Deficiency'!$D$57 -> 3929168.392 | E35: ='[9]2015 Rev Deficiency'!$D$59 -> 0.06181493975 | F35: ='[9]2015 Rev Deficiency'!$D$49 -> 63563410.52 | G35: ='[9]Return on Capital'!$AK$28 -> 71996796.6 | H35: ='[9]Return on Capital'!$AK$30 -> 9359583.558 | I35: ='[9]2015 Rev Deficiency'!$D$16 -> 2512250.76 | J35: ='[9]2015 Rev Deficiency'!$D$25 -> 166112.925 | K35: ='[9]2015 Rev Deficiency'!$D$13+'[9]2015 Rev Deficiency'!$D$14 -> 6997378.808 | L35: ='[9]2015 Rev Deficiency'!$D$10 -> 13691487.13 | M35: ='[9]2015 Rev Deficiency'!$D$9 -> 1153934.32 | N35: ='[9]2015 Rev Deficiency'!$D$7+'[9]2015 Rev Deficiency'!$D$8 -> 12537552.81 | O35: ='[9]2015 Rev Deficiency'!$D$7 -> 1560697.924 | Q35: =IF(AND(ISBLANK(B35), ISBLANK(C35)), "X", "") -> 
C36: Change | D36: =IF(D35="","",D35-D32) -> -59.98830828 | E36: =IF(E35="","",E35-E32) -> 0 | F36: =IF(F35="","",F35-F32) -> -970.45 | G36: =IF(G35="","",G35-G32) -> -7465 | H36: =IF(H35="","",H35-H32) -> -970.45 | I36: =IF(I35="","",I35-I32) -> 0 | J36: =IF(J35="","",J35-J32) -> -12.73165348 | K36: =IF(K35="","",K35-K32) -> -7465 | L36: =IF(L35="","",L35-L32) -> -7537.719962 | M36: =IF(M35="","",M35-M32) -> 0 | N36: =IF(N35="","",N35-N32) -> -7537.719962 | O36: =IF(O35="","",O35-O32) -> -7537.719962
A38: 6 | B38: 4-Energy Probe-59 | C38: #5 with small business tax credit eliminated | D38: ='[10]2015 Rev Deficiency'!$D$57 -> 3929168.392 | E38: ='[10]2015 Rev Deficiency'!$D$59 -> 0.06181493975 | F38: ='[10]2015 Rev Deficiency'!$D$49 -> 63563410.52 | G38: ='[10]Return on Capital'!$AK$28 -> 71996796.6 | H38: ='[10]Return on Capital'!$AK$30 -> 9359583.558 | I38: ='[10]2015 Rev Deficiency'!$D$16 -> 2512250.76 | J38: ='[10]2015 Rev Deficiency'!$D$25 -> 224995.9204 | K38: ='[10]2015 Rev Deficiency'!$D$13+'[10]2015 Rev Deficiency'!$D$14 -> 6997378.808 | L38: ='[10]2015 Rev Deficiency'!$D$10 -> 13750370.13 | M38: ='[10]2015 Rev Deficiency'!$D$9 -> 1153934.32 | N38: ='[10]2015 Rev Deficiency'!$D$7+'[10]2015 Rev Deficiency'!$D$8 -> 12596435.81 | O38: ='[10]2015 Rev Deficiency'!$D$7 -> 1619580.919 | Q38: =IF(AND(ISBLANK(B38), ISBLANK(C38)), "X", "") -> 
C39: Change | D39: =IF(D38="","",D38-D35) -> 0 | E39: =IF(E38="","",E38-E35) -> 0 | F39: =IF(F38="","",F38-F35) -> 0 | G39: =IF(G38="","",G38-G35) -> 0 | H39: =IF(H38="","",H38-H35) -> 0 | I39: =IF(I38="","",I38-I35) -> 0 | J39: =IF(J38="","",J38-J35) -> 58882.99542 | K39: =IF(K38="","",K38-K35) -> 0 | L39: =IF(L38="","",L38-L35) -> 58882.99542 | M39: =IF(M38="","",M38-M35) -> 0 | N39: =IF(N38="","",N38-N35) -> 58882.99542 | O39: =IF(O38="","",O38-O35) -> 58882.99542
A41: 7 | B41: JT1.9 | C41: #6 with CCA reclassification | D41: ='[4]2015 Rev Deficiency'!$D$57 -> 3929168.392 | E41: ='[4]2015 Rev Deficiency'!$D$59 -> 0.06181493975 | F41: ='[4]2015 Rev Deficiency'!$D$49 -> 63563410.52 | G41: ='[4]Return on Capital'!$AK$28 -> 71996796.6 | H41: ='[4]Return on Capital'!$AK$30 -> 9359583.558 | I41: ='[4]2015 Rev Deficiency'!$D$16 -> 2512250.76 | J41: ='[4]2015 Rev Deficiency'!$D$25 -> 218802.922 | K41: ='[4]2015 Rev Deficiency'!$D$13+'[4]2015 Rev Deficiency'!$D$14 -> 6997378.808 | L41: ='[4]2015 Rev Deficiency'!$D$10 -> 13744177.13 | M41: ='[4]2015 Rev Deficiency'!$D$9 -> 1153934.32 | N41: ='[4]2015 Rev Deficiency'!$D$7+'[4]2015 Rev Deficiency'!$D$8 -> 12590242.81 | O41: ='[4]2015 Rev Deficiency'!$D$7 -> 1613387.921 | Q41: =IF(AND(ISBLANK(B41), ISBLANK(C41)), "X", "") -> 
C42: Change | D42: =IF(D41="","",D41-D38) -> 0 | E42: =IF(E41="","",E41-E38) -> 0 | F42: =IF(F41="","",F41-F38) -> 0 | G42: =IF(G41="","",G41-G38) -> 0 | H42: =IF(H41="","",H41-H38) -> 0 | I42: =IF(I41="","",I41-I38) -> 0 | J42: =IF(J41="","",J41-J38) -> -6192.998487 | K42: =IF(K41="","",K41-K38) -> 0 | L42: =IF(L41="","",L41-L38) -> -6192.998487 | M42: =IF(M41="","",M41-M38) -> 0 | N42: =IF(N41="","",N41-N38) -> -6192.998487 | O42: =IF(O41="","",O41-O38) -> -6192.998487
A44: 8 | Q44: =IF(AND(ISBLANK(B44), ISBLANK(C44)), "X", "") -> X
C45: Change | D45: =IF(D44="","",D44-D41) ->  | E45: =IF(E44="","",E44-E41) ->  | F45: =IF(F44="","",F44-F41) ->  | G45: =IF(G44="","",G44-G41) ->  | H45: =IF(H44="","",H44-H41) ->  | I45: =IF(I44="","",I44-I41) ->  | J45: =IF(J44="","",J44-J41) ->  | K45: =IF(K44="","",K44-K41) ->  | L45: =IF(L44="","",L44-L41) ->  | M45: =IF(M44="","",M44-M41) ->  | N45: =IF(N44="","",N44-N41) ->  | O45: =IF(O44="","",O44-O41) -> 
A47: 9 | Q47: =IF(AND(ISBLANK(B47), ISBLANK(C47)), "X", "") -> X
C48: Change | D48: =IF(D47="","",D47-D44) ->  | E48: =IF(E47="","",E47-E44) ->  | F48: =IF(F47="","",F47-F44) ->  | G48: =IF(G47="","",G47-G44) ->  | H48: =IF(H47="","",H47-H44) ->  | I48: =IF(I47="","",I47-I44) ->  | J48: =IF(J47="","",J47-J44) ->  | K48: =IF(K47="","",K47-K44) ->  | L48: =IF(L47="","",L47-L44) ->  | M48: =IF(M47="","",M47-M44) ->  | N48: =IF(N47="","",N47-N44) ->  | O48: =IF(O47="","",O47-O44) -> 
A50: 10 | Q50: =IF(AND(ISBLANK(B50), ISBLANK(C50)), "X", "") -> X
C51: Change | D51: =IF(D50="","",D50-D47) ->  | E51: =IF(E50="","",E50-E47) ->  | F51: =IF(F50="","",F50-F47) ->  | G51: =IF(G50="","",G50-G47) ->  | H51: =IF(H50="","",H50-H47) ->  | I51: =IF(I50="","",I50-I47) ->  | J51: =IF(J50="","",J50-J47) ->  | K51: =IF(K50="","",K50-K47) ->  | L51: =IF(L50="","",L50-L47) ->  | M51: =IF(M50="","",M50-M47) ->  | N51: =IF(N50="","",N50-N47) ->  | O51: =IF(O50="","",O50-O47) -> 
A53: 11 | Q53: =IF(AND(ISBLANK(B53), ISBLANK(C53)), "X", "") -> X
C54: Change | D54: =IF(D53="","",D53-D50) ->  | E54: =IF(E53="","",E53-E50) ->  | F54: =IF(F53="","",F53-F50) ->  | G54: =IF(G53="","",G53-G50) ->  | H54: =IF(H53="","",H53-H50) ->  | I54: =IF(I53="","",I53-I50) ->  | J54: =IF(J53="","",J53-J50) ->  | K54: =IF(K53="","",K53-K50) ->  | L54: =IF(L53="","",L53-L50) ->  | M54: =IF(M53="","",M53-M50) ->  | N54: =IF(N53="","",N53-N50) ->  | O54: =IF(O53="","",O53-O50) -> 
A56: 12 | Q56: =IF(AND(ISBLANK(B56), ISBLANK(C56)), "X", "") -> X
C57: Change | D57: =IF(D56="","",D56-D53) ->  | E57: =IF(E56="","",E56-E53) ->  | F57: =IF(F56="","",F56-F53) ->  | G57: =IF(G56="","",G56-G53) ->  | H57: =IF(H56="","",H56-H53) ->  | I57: =IF(I56="","",I56-I53) ->  | J57: =IF(J56="","",J56-J53) ->  | K57: =IF(K56="","",K56-K53) ->  | L57: =IF(L56="","",L56-L53) ->  | M57: =IF(M56="","",M56-M53) ->  | N57: =IF(N56="","",N56-N53) ->  | O57: =IF(O56="","",O56-O53) -> 
A59: 13 | Q59: =IF(AND(ISBLANK(B59), ISBLANK(C59)), "X", "") -> X
C60: Change | D60: =IF(D59="","",D59-D56) ->  | E60: =IF(E59="","",E59-E56) ->  | F60: =IF(F59="","",F59-F56) ->  | G60: =IF(G59="","",G59-G56) ->  | H60: =IF(H59="","",H59-H56) ->  | I60: =IF(I59="","",I59-I56) ->  | J60: =IF(J59="","",J59-J56) ->  | K60: =IF(K59="","",K59-K56) ->  | L60: =IF(L59="","",L59-L56) ->  | M60: =IF(M59="","",M59-M56) ->  | N60: =IF(N59="","",N59-N56) ->  | O60: =IF(O59="","",O59-O56) -> 
A62: 14 | Q62: =IF(AND(ISBLANK(B62), ISBLANK(C62)), "X", "") -> X
C63: Change | D63: =IF(D62="","",D62-D59) ->  | E63: =IF(E62="","",E62-E59) ->  | F63: =IF(F62="","",F62-F59) ->  | G63: =IF(G62="","",G62-G59) ->  | H63: =IF(H62="","",H62-H59) ->  | I63: =IF(I62="","",I62-I59) ->  | J63: =IF(J62="","",J62-J59) ->  | K63: =IF(K62="","",K62-K59) ->  | L63: =IF(L62="","",L62-L59) ->  | M63: =IF(M62="","",M62-M59) ->  | N63: =IF(N62="","",N62-N59) ->  | O63: =IF(O62="","",O62-O59) -> 
A65: 15 | Q65: =IF(AND(ISBLANK(B65), ISBLANK(C65)), "X", "") -> X
C66: Change | D66: =IF(D65="","",D65-D62) ->  | E66: =IF(E65="","",E65-E62) ->  | F66: =IF(F65="","",F65-F62) ->  | G66: =IF(G65="","",G65-G62) ->  | H66: =IF(H65="","",H65-H62) ->  | I66: =IF(I65="","",I65-I62) ->  | J66: =IF(J65="","",J65-J62) ->  | K66: =IF(K65="","",K65-K62) ->  | L66: =IF(L65="","",L65-L62) ->  | M66: =IF(M65="","",M65-M62) ->  | N66: =IF(N65="","",N65-N62) ->  | O66: =IF(O65="","",O65-O62) -> 
A68: 16 | Q68: =IF(AND(ISBLANK(B68), ISBLANK(C68)), "X", "") -> X
C69: Change | D69: =IF(D68="","",D68-D65) ->  | E69: =IF(E68="","",E68-E65) ->  | F69: =IF(F68="","",F68-F65) ->  | G69: =IF(G68="","",G68-G65) ->  | H69: =IF(H68="","",H68-H65) ->  | I69: =IF(I68="","",I68-I65) ->  | J69: =IF(J68="","",J68-J65) ->  | K69: =IF(K68="","",K68-K65) ->  | L69: =IF(L68="","",L68-L65) ->  | M69: =IF(M68="","",M68-M65) ->  | N69: =IF(N68="","",N68-N65) ->  | O69: =IF(O68="","",O68-O65) -> 
A71: 17 | Q71: =IF(AND(ISBLANK(B71), ISBLANK(C71)), "X", "") -> X
C72: Change | D72: =IF(D71="","",D71-D68) ->  | E72: =IF(E71="","",E71-E68) ->  | F72: =IF(F71="","",F71-F68) ->  | G72: =IF(G71="","",G71-G68) ->  | H72: =IF(H71="","",H71-H68) ->  | I72: =IF(I71="","",I71-I68) ->  | J72: =IF(J71="","",J71-J68) ->  | K72: =IF(K71="","",K71-K68) ->  | L72: =IF(L71="","",L71-L68) ->  | M72: =IF(M71="","",M71-M68) ->  | N72: =IF(N71="","",N71-N68) ->  | O72: =IF(O71="","",O71-O68) -> 
A74: 18 | Q74: =IF(AND(ISBLANK(B74), ISBLANK(C74)), "X", "") -> X
C75: Change | D75: =IF(D74="","",D74-D71) ->  | E75: =IF(E74="","",E74-E71) ->  | F75: =IF(F74="","",F74-F71) ->  | G75: =IF(G74="","",G74-G71) ->  | H75: =IF(H74="","",H74-H71) ->  | I75: =IF(I74="","",I74-I71) ->  | J75: =IF(J74="","",J74-J71) ->  | K75: =IF(K74="","",K74-K71) ->  | L75: =IF(L74="","",L74-L71) ->  | M75: =IF(M74="","",M74-M71) ->  | N75: =IF(N74="","",N74-N71) ->  | O75: =IF(O74="","",O74-O71) -> 
R76: Page Break 1
A77: 19 | Q77: =IF(AND(ISBLANK(B77), ISBLANK(C77)), "X", "") -> X
C78: Change | D78: =IF(D77="","",D77-D74) ->  | E78: =IF(E77="","",E77-E74) ->  | F78: =IF(F77="","",F77-F74) ->  | G78: =IF(G77="","",G77-G74) ->  | H78: =IF(H77="","",H77-H74) ->  | I78: =IF(I77="","",I77-I74) ->  | J78: =IF(J77="","",J77-J74) ->  | K78: =IF(K77="","",K77-K74) ->  | L78: =IF(L77="","",L77-L74) ->  | M78: =IF(M77="","",M77-M74) ->  | N78: =IF(N77="","",N77-N74) ->  | O78: =IF(O77="","",O77-O74) -> 
A80: 20 | Q80: =IF(AND(ISBLANK(B80), ISBLANK(C80)), "X", "") -> X
C81: Change | D81: =IF(D80="","",D80-D77) ->  | E81: =IF(E80="","",E80-E77) ->  | F81: =IF(F80="","",F80-F77) ->  | G81: =IF(G80="","",G80-G77) ->  | H81: =IF(H80="","",H80-H77) ->  | I81: =IF(I80="","",I80-I77) ->  | J81: =IF(J80="","",J80-J77) ->  | K81: =IF(K80="","",K80-K77) ->  | L81: =IF(L80="","",L80-L77) ->  | M81: =IF(M80="","",M80-M77) ->  | N81: =IF(N80="","",N80-N77) ->  | O81: =IF(O80="","",O80-O77) -> 
A83: 21 | Q83: =IF(AND(ISBLANK(B83), ISBLANK(C83)), "X", "") -> X
C84: Change | D84: =IF(D83="","",D83-D80) ->  | E84: =IF(E83="","",E83-E80) ->  | F84: =IF(F83="","",F83-F80) ->  | G84: =IF(G83="","",G83-G80) ->  | H84: =IF(H83="","",H83-H80) ->  | I84: =IF(I83="","",I83-I80) ->  | J84: =IF(J83="","",J83-J80) ->  | K84: =IF(K83="","",K83-K80) ->  | L84: =IF(L83="","",L83-L80) ->  | M84: =IF(M83="","",M83-M80) ->  | N84: =IF(N83="","",N83-N80) ->  | O84: =IF(O83="","",O83-O80) -> 
A86: 22 | Q86: =IF(AND(ISBLANK(B86), ISBLANK(C86)), "X", "") -> X
C87: Change | D87: =IF(D86="","",D86-D83) ->  | E87: =IF(E86="","",E86-E83) ->  | F87: =IF(F86="","",F86-F83) ->  | G87: =IF(G86="","",G86-G83) ->  | H87: =IF(H86="","",H86-H83) ->  | I87: =IF(I86="","",I86-I83) ->  | J87: =IF(J86="","",J86-J83) ->  | K87: =IF(K86="","",K86-K83) ->  | L87: =IF(L86="","",L86-L83) ->  | M87: =IF(M86="","",M86-M83) ->  | N87: =IF(N86="","",N86-N83) ->  | O87: =IF(O86="","",O86-O83) -> 
A89: 23 | Q89: =IF(AND(ISBLANK(B89), ISBLANK(C89)), "X", "") -> X
C90: Change | D90: =IF(D89="","",D89-D86) ->  | E90: =IF(E89="","",E89-E86) ->  | F90: =IF(F89="","",F89-F86) ->  | G90: =IF(G89="","",G89-G86) ->  | H90: =IF(H89="","",H89-H86) ->  | I90: =IF(I89="","",I89-I86) ->  | J90: =IF(J89="","",J89-J86) ->  | K90: =IF(K89="","",K89-K86) ->  | L90: =IF(L89="","",L89-L86) ->  | M90: =IF(M89="","",M89-M86) ->  | N90: =IF(N89="","",N89-N86) ->  | O90: =IF(O89="","",O89-O86) -> 
A92: 24 | Q92: =IF(AND(ISBLANK(B92), ISBLANK(C92)), "X", "") -> X
C93: Change | D93: =IF(D92="","",D92-D89) ->  | E93: =IF(E92="","",E92-E89) ->  | F93: =IF(F92="","",F92-F89) ->  | G93: =IF(G92="","",G92-G89) ->  | H93: =IF(H92="","",H92-H89) ->  | I93: =IF(I92="","",I92-I89) ->  | J93: =IF(J92="","",J92-J89) ->  | K93: =IF(K92="","",K92-K89) ->  | L93: =IF(L92="","",L92-L89) ->  | M93: =IF(M92="","",M92-M89) ->  | N93: =IF(N92="","",N92-N89) ->  | O93: =IF(O92="","",O92-O89) -> 
A95: 25 | Q95: =IF(AND(ISBLANK(B95), ISBLANK(C95)), "X", "") -> X
C96: Change | D96: =IF(D95="","",D95-D92) ->  | E96: =IF(E95="","",E95-E92) ->  | F96: =IF(F95="","",F95-F92) ->  | G96: =IF(G95="","",G95-G92) ->  | H96: =IF(H95="","",H95-H92) ->  | I96: =IF(I95="","",I95-I92) ->  | J96: =IF(J95="","",J95-J92) ->  | K96: =IF(K95="","",K95-K92) ->  | L96: =IF(L95="","",L95-L92) ->  | M96: =IF(M95="","",M95-M92) ->  | N96: =IF(N95="","",N95-N92) ->  | O96: =IF(O95="","",O95-O92) -> 
A98: 26 | Q98: =IF(AND(ISBLANK(B98), ISBLANK(C98)), "X", "") -> X
C99: Change | D99: =IF(D98="","",D98-D95) ->  | E99: =IF(E98="","",E98-E95) ->  | F99: =IF(F98="","",F98-F95) ->  | G99: =IF(G98="","",G98-G95) ->  | H99: =IF(H98="","",H98-H95) ->  | I99: =IF(I98="","",I98-I95) ->  | J99: =IF(J98="","",J98-J95) ->  | K99: =IF(K98="","",K98-K95) ->  | L99: =IF(L98="","",L98-L95) ->  | M99: =IF(M98="","",M98-M95) ->  | N99: =IF(N98="","",N98-N95) ->  | O99: =IF(O98="","",O98-O95) -> 
A101: 27 | Q101: =IF(AND(ISBLANK(B101), ISBLANK(C101)), "X", "") -> X
C102: Change | D102: =IF(D101="","",D101-D98) ->  | E102: =IF(E101="","",E101-E98) ->  | F102: =IF(F101="","",F101-F98) ->  | G102: =IF(G101="","",G101-G98) ->  | H102: =IF(H101="","",H101-H98) ->  | I102: =IF(I101="","",I101-I98) ->  | J102: =IF(J101="","",J101-J98) ->  | K102: =IF(K101="","",K101-K98) ->  | L102: =IF(L101="","",L101-L98) ->  | M102: =IF(M101="","",M101-M98) ->  | N102: =IF(N101="","",N101-N98) ->  | O102: =IF(O101="","",O101-O98) -> 
A104: 28 | Q104: =IF(AND(ISBLANK(B104), ISBLANK(C104)), "X", "") -> X
C105: Change | D105: =IF(D104="","",D104-D101) ->  | E105: =IF(E104="","",E104-E101) ->  | F105: =IF(F104="","",F104-F101) ->  | G105: =IF(G104="","",G104-G101) ->  | H105: =IF(H104="","",H104-H101) ->  | I105: =IF(I104="","",I104-I101) ->  | J105: =IF(J104="","",J104-J101) ->  | K105: =IF(K104="","",K104-K101) ->  | L105: =IF(L104="","",L104-L101) ->  | M105: =IF(M104="","",M104-M101) ->  | N105: =IF(N104="","",N104-N101) ->  | O105: =IF(O104="","",O104-O101) -> 
A107: 29 | Q107: =IF(AND(ISBLANK(B107), ISBLANK(C107)), "X", "") -> X
C108: Change | D108: =IF(D107="","",D107-D104) ->  | E108: =IF(E107="","",E107-E104) ->  | F108: =IF(F107="","",F107-F104) ->  | G108: =IF(G107="","",G107-G104) ->  | H108: =IF(H107="","",H107-H104) ->  | I108: =IF(I107="","",I107-I104) ->  | J108: =IF(J107="","",J107-J104) ->  | K108: =IF(K107="","",K107-K104) ->  | L108: =IF(L107="","",L107-L104) ->  | M108: =IF(M107="","",M107-M104) ->  | N108: =IF(N107="","",N107-N104) ->  | O108: =IF(O107="","",O107-O104) -> 
A110: 30 | Q110: =IF(AND(ISBLANK(B110), ISBLANK(C110)), "X", "") -> X
C111: Change | D111: =IF(D110="","",D110-D107) ->  | E111: =IF(E110="","",E110-E107) ->  | F111: =IF(F110="","",F110-F107) ->  | G111: =IF(G110="","",G110-G107) ->  | H111: =IF(H110="","",H110-H107) ->  | I111: =IF(I110="","",I110-I107) ->  | J111: =IF(J110="","",J110-J107) ->  | K111: =IF(K110="","",K110-K107) ->  | L111: =IF(L110="","",L110-L107) ->  | M111: =IF(M110="","",M110-M107) ->  | N111: =IF(N110="","",N110-N107) ->  | O111: =IF(O110="","",O110-O107) -> 
A113: 31 | Q113: =IF(AND(ISBLANK(B113), ISBLANK(C113)), "X", "") -> X
C114: Change | D114: =IF(D113="","",D113-D110) ->  | E114: =IF(E113="","",E113-E110) ->  | F114: =IF(F113="","",F113-F110) ->  | G114: =IF(G113="","",G113-G110) ->  | H114: =IF(H113="","",H113-H110) ->  | I114: =IF(I113="","",I113-I110) ->  | J114: =IF(J113="","",J113-J110) ->  | K114: =IF(K113="","",K113-K110) ->  | L114: =IF(L113="","",L113-L110) ->  | M114: =IF(M113="","",M113-M110) ->  | N114: =IF(N113="","",N113-N110) ->  | O114: =IF(O113="","",O113-O110) -> 
A116: 32 | Q116: =IF(AND(ISBLANK(B116), ISBLANK(C116)), "X", "") -> X
C117: Change | D117: =IF(D116="","",D116-D113) ->  | E117: =IF(E116="","",E116-E113) ->  | F117: =IF(F116="","",F116-F113) ->  | G117: =IF(G116="","",G116-G113) ->  | H117: =IF(H116="","",H116-H113) ->  | I117: =IF(I116="","",I116-I113) ->  | J117: =IF(J116="","",J116-J113) ->  | K117: =IF(K116="","",K116-K113) ->  | L117: =IF(L116="","",L116-L113) ->  | M117: =IF(M116="","",M116-M113) ->  | N117: =IF(N116="","",N116-N113) ->  | O117: =IF(O116="","",O116-O113) -> 
A119: 33 | Q119: =IF(AND(ISBLANK(B119), ISBLANK(C119)), "X", "") -> X
C120: Change | D120: =IF(D119="","",D119-D116) ->  | E120: =IF(E119="","",E119-E116) ->  | F120: =IF(F119="","",F119-F116) ->  | G120: =IF(G119="","",G119-G116) ->  | H120: =IF(H119="","",H119-H116) ->  | I120: =IF(I119="","",I119-I116) ->  | J120: =IF(J119="","",J119-J116) ->  | K120: =IF(K119="","",K119-K116) ->  | L120: =IF(L119="","",L119-L116) ->  | M120: =IF(M119="","",M119-M116) ->  | N120: =IF(N119="","",N119-N116) ->  | O120: =IF(O119="","",O119-O116) -> 
A122: 34 | Q122: =IF(AND(ISBLANK(B122), ISBLANK(C122)), "X", "") -> X
C123: Change | D123: =IF(D122="","",D122-D119) ->  | E123: =IF(E122="","",E122-E119) ->  | F123: =IF(F122="","",F122-F119) ->  | G123: =IF(G122="","",G122-G119) ->  | H123: =IF(H122="","",H122-H119) ->  | I123: =IF(I122="","",I122-I119) ->  | J123: =IF(J122="","",J122-J119) ->  | K123: =IF(K122="","",K122-K119) ->  | L123: =IF(L122="","",L122-L119) ->  | M123: =IF(M122="","",M122-M119) ->  | N123: =IF(N122="","",N122-N119) ->  | O123: =IF(O122="","",O122-O119) -> 
A125: 35 | Q125: =IF(AND(ISBLANK(B125), ISBLANK(C125)), "X", "") -> X
C126: Change | D126: =IF(D125="","",D125-D122) ->  | E126: =IF(E125="","",E125-E122) ->  | F126: =IF(F125="","",F125-F122) ->  | G126: =IF(G125="","",G125-G122) ->  | H126: =IF(H125="","",H125-H122) ->  | I126: =IF(I125="","",I125-I122) ->  | J126: =IF(J125="","",J125-J122) ->  | K126: =IF(K125="","",K125-K122) ->  | L126: =IF(L125="","",L125-L122) ->  | M126: =IF(M125="","",M125-M122) ->  | N126: =IF(N125="","",N125-N122) ->  | O126: =IF(O125="","",O125-O122) -> 
A128: 36 | Q128: =IF(AND(ISBLANK(B128), ISBLANK(C128)), "X", "") -> X
C129: Change | D129: =IF(D128="","",D128-D125) ->  | E129: =IF(E128="","",E128-E125) ->  | F129: =IF(F128="","",F128-F125) ->  | G129: =IF(G128="","",G128-G125) ->  | H129: =IF(H128="","",H128-H125) ->  | I129: =IF(I128="","",I128-I125) ->  | J129: =IF(J128="","",J128-J125) ->  | K129: =IF(K128="","",K128-K125) ->  | L129: =IF(L128="","",L128-L125) ->  | M129: =IF(M128="","",M128-M125) ->  | N129: =IF(N128="","",N128-N125) ->  | O129: =IF(O128="","",O128-O125) -> 
R130: Page Break 2
A131: 37 | Q131: =IF(AND(ISBLANK(B131), ISBLANK(C131)), "X", "") -> X
C132: Change | D132: =IF(D131="","",D131-D128) ->  | E132: =IF(E131="","",E131-E128) ->  | F132: =IF(F131="","",F131-F128) ->  | G132: =IF(G131="","",G131-G128) ->  | H132: =IF(H131="","",H131-H128) ->  | I132: =IF(I131="","",I131-I128) ->  | J132: =IF(J131="","",J131-J128) ->  | K132: =IF(K131="","",K131-K128) ->  | L132: =IF(L131="","",L131-L128) ->  | M132: =IF(M131="","",M131-M128) ->  | N132: =IF(N131="","",N131-N128) ->  | O132: =IF(O131="","",O131-O128) -> 
A134: 38 | Q134: =IF(AND(ISBLANK(B134), ISBLANK(C134)), "X", "") -> X
C135: Change | D135: =IF(D134="","",D134-D131) ->  | E135: =IF(E134="","",E134-E131) ->  | F135: =IF(F134="","",F134-F131) ->  | G135: =IF(G134="","",G134-G131) ->  | H135: =IF(H134="","",H134-H131) ->  | I135: =IF(I134="","",I134-I131) ->  | J135: =IF(J134="","",J134-J131) ->  | K135: =IF(K134="","",K134-K131) ->  | L135: =IF(L134="","",L134-L131) ->  | M135: =IF(M134="","",M134-M131) ->  | N135: =IF(N134="","",N134-N131) ->  | O135: =IF(O134="","",O134-O131) -> 
A137: 39 | Q137: =IF(AND(ISBLANK(B137), ISBLANK(C137)), "X", "") -> X
C138: Change | D138: =IF(D137="","",D137-D134) ->  | E138: =IF(E137="","",E137-E134) ->  | F138: =IF(F137="","",F137-F134) ->  | G138: =IF(G137="","",G137-G134) ->  | H138: =IF(H137="","",H137-H134) ->  | I138: =IF(I137="","",I137-I134) ->  | J138: =IF(J137="","",J137-J134) ->  | K138: =IF(K137="","",K137-K134) ->  | L138: =IF(L137="","",L137-L134) ->  | M138: =IF(M137="","",M137-M134) ->  | N138: =IF(N137="","",N137-N134) ->  | O138: =IF(O137="","",O137-O134) -> 
A140: 40 | Q140: =IF(AND(ISBLANK(B140), ISBLANK(C140)), "X", "") -> X
C141: Change | D141: =IF(D140="","",D140-D137) ->  | E141: =IF(E140="","",E140-E137) ->  | F141: =IF(F140="","",F140-F137) ->  | G141: =IF(G140="","",G140-G137) ->  | H141: =IF(H140="","",H140-H137) ->  | I141: =IF(I140="","",I140-I137) ->  | J141: =IF(J140="","",J140-J137) ->  | K141: =IF(K140="","",K140-K137) ->  | L141: =IF(L140="","",L140-L137) ->  | M141: =IF(M140="","",M140-M137) ->  | N141: =IF(N140="","",N140-N137) ->  | O141: =IF(O140="","",O140-O137) -> 
A143: 41 | Q143: =IF(AND(ISBLANK(B143), ISBLANK(C143)), "X", "") -> X
C144: Change | D144: =IF(D143="","",D143-D140) ->  | E144: =IF(E143="","",E143-E140) ->  | F144: =IF(F143="","",F143-F140) ->  | G144: =IF(G143="","",G143-G140) ->  | H144: =IF(H143="","",H143-H140) ->  | I144: =IF(I143="","",I143-I140) ->  | J144: =IF(J143="","",J143-J140) ->  | K144: =IF(K143="","",K143-K140) ->  | L144: =IF(L143="","",L143-L140) ->  | M144: =IF(M143="","",M143-M140) ->  | N144: =IF(N143="","",N143-N140) ->  | O144: =IF(O143="","",O143-O140) -> 
A146: 42 | Q146: =IF(AND(ISBLANK(B146), ISBLANK(C146)), "X", "") -> X
C147: Change | D147: =IF(D146="","",D146-D143) ->  | E147: =IF(E146="","",E146-E143) ->  | F147: =IF(F146="","",F146-F143) ->  | G147: =IF(G146="","",G146-G143) ->  | H147: =IF(H146="","",H146-H143) ->  | I147: =IF(I146="","",I146-I143) ->  | J147: =IF(J146="","",J146-J143) ->  | K147: =IF(K146="","",K146-K143) ->  | L147: =IF(L146="","",L146-L143) ->  | M147: =IF(M146="","",M146-M143) ->  | N147: =IF(N146="","",N146-N143) ->  | O147: =IF(O146="","",O146-O143) -> 
A149: 43 | Q149: =IF(AND(ISBLANK(B149), ISBLANK(C149)), "X", "") -> X
C150: Change | D150: =IF(D149="","",D149-D146) ->  | E150: =IF(E149="","",E149-E146) ->  | F150: =IF(F149="","",F149-F146) ->  | G150: =IF(G149="","",G149-G146) ->  | H150: =IF(H149="","",H149-H146) ->  | I150: =IF(I149="","",I149-I146) ->  | J150: =IF(J149="","",J149-J146) ->  | K150: =IF(K149="","",K149-K146) ->  | L150: =IF(L149="","",L149-L146) ->  | M150: =IF(M149="","",M149-M146) ->  | N150: =IF(N149="","",N149-N146) ->  | O150: =IF(O149="","",O149-O146) -> 
A152: 44 | Q152: =IF(AND(ISBLANK(B152), ISBLANK(C152)), "X", "") -> X
C153: Change | D153: =IF(D152="","",D152-D149) ->  | E153: =IF(E152="","",E152-E149) ->  | F153: =IF(F152="","",F152-F149) ->  | G153: =IF(G152="","",G152-G149) ->  | H153: =IF(H152="","",H152-H149) ->  | I153: =IF(I152="","",I152-I149) ->  | J153: =IF(J152="","",J152-J149) ->  | K153: =IF(K152="","",K152-K149) ->  | L153: =IF(L152="","",L152-L149) ->  | M153: =IF(M152="","",M152-M149) ->  | N153: =IF(N152="","",N152-N149) ->  | O153: =IF(O152="","",O152-O149) -> 
A155: 45 | Q155: =IF(AND(ISBLANK(B155), ISBLANK(C155)), "X", "") -> X
C156: Change | D156: =IF(D155="","",D155-D152) ->  | E156: =IF(E155="","",E155-E152) ->  | F156: =IF(F155="","",F155-F152) ->  | G156: =IF(G155="","",G155-G152) ->  | H156: =IF(H155="","",H155-H152) ->  | I156: =IF(I155="","",I155-I152) ->  | J156: =IF(J155="","",J155-J152) ->  | K156: =IF(K155="","",K155-K152) ->  | L156: =IF(L155="","",L155-L152) ->  | M156: =IF(M155="","",M155-M152) ->  | N156: =IF(N155="","",N155-N152) ->  | O156: =IF(O155="","",O155-O152) -> 
A158: 46 | Q158: =IF(AND(ISBLANK(B158), ISBLANK(C158)), "X", "") -> X
C159: Change | D159: =IF(D158="","",D158-D155) ->  | E159: =IF(E158="","",E158-E155) ->  | F159: =IF(F158="","",F158-F155) ->  | G159: =IF(G158="","",G158-G155) ->  | H159: =IF(H158="","",H158-H155) ->  | I159: =IF(I158="","",I158-I155) ->  | J159: =IF(J158="","",J158-J155) ->  | K159: =IF(K158="","",K158-K155) ->  | L159: =IF(L158="","",L158-L155) ->  | M159: =IF(M158="","",M158-M155) ->  | N159: =IF(N158="","",N158-N155) ->  | O159: =IF(O158="","",O158-O155) -> 
A161: 47 | Q161: =IF(AND(ISBLANK(B161), ISBLANK(C161)), "X", "") -> X
C162: Change | D162: =IF(D161="","",D161-D158) ->  | E162: =IF(E161="","",E161-E158) ->  | F162: =IF(F161="","",F161-F158) ->  | G162: =IF(G161="","",G161-G158) ->  | H162: =IF(H161="","",H161-H158) ->  | I162: =IF(I161="","",I161-I158) ->  | J162: =IF(J161="","",J161-J158) ->  | K162: =IF(K161="","",K161-K158) ->  | L162: =IF(L161="","",L161-L158) ->  | M162: =IF(M161="","",M161-M158) ->  | N162: =IF(N161="","",N161-N158) ->  | O162: =IF(O161="","",O161-O158) -> 
A164: 48 | Q164: =IF(AND(ISBLANK(B164), ISBLANK(C164)), "X", "") -> X
C165: Change | D165: =IF(D164="","",D164-D161) ->  | E165: =IF(E164="","",E164-E161) ->  | F165: =IF(F164="","",F164-F161) ->  | G165: =IF(G164="","",G164-G161) ->  | H165: =IF(H164="","",H164-H161) ->  | I165: =IF(I164="","",I164-I161) ->  | J165: =IF(J164="","",J164-J161) ->  | K165: =IF(K164="","",K164-K161) ->  | L165: =IF(L164="","",L164-L161) ->  | M165: =IF(M164="","",M164-M161) ->  | N165: =IF(N164="","",N164-N161) ->  | O165: =IF(O164="","",O164-O161) -> 
A167: 49 | Q167: =IF(AND(ISBLANK(B167), ISBLANK(C167)), "X", "") -> X
C168: Change | D168: =IF(D167="","",D167-D164) ->  | E168: =IF(E167="","",E167-E164) ->  | F168: =IF(F167="","",F167-F164) ->  | G168: =IF(G167="","",G167-G164) ->  | H168: =IF(H167="","",H167-H164) ->  | I168: =IF(I167="","",I167-I164) ->  | J168: =IF(J167="","",J167-J164) ->  | K168: =IF(K167="","",K167-K164) ->  | L168: =IF(L167="","",L167-L164) ->  | M168: =IF(M167="","",M167-M164) ->  | N168: =IF(N167="","",N167-N164) ->  | O168: =IF(O167="","",O167-O164) -> 
A170: 50 | Q170: =IF(AND(ISBLANK(B170), ISBLANK(C170)), "X", "") -> X
C171: Change | D171: =IF(D170="","",D170-D167) ->  | E171: =IF(E170="","",E170-E167) ->  | F171: =IF(F170="","",F170-F167) ->  | G171: =IF(G170="","",G170-G167) ->  | H171: =IF(H170="","",H170-H167) ->  | I171: =IF(I170="","",I170-I167) ->  | J171: =IF(J170="","",J170-J167) ->  | K171: =IF(K170="","",K170-K167) ->  | L171: =IF(L170="","",L170-L167) ->  | M171: =IF(M170="","",M170-M167) ->  | N171: =IF(N170="","",N170-N167) ->  | O171: =IF(O170="","",O170-O167) -> 
A173: 51 | Q173: =IF(AND(ISBLANK(B173), ISBLANK(C173)), "X", "") -> X
C174: Change | D174: =IF(D173="","",D173-D170) ->  | E174: =IF(E173="","",E173-E170) ->  | F174: =IF(F173="","",F173-F170) ->  | G174: =IF(G173="","",G173-G170) ->  | H174: =IF(H173="","",H173-H170) ->  | I174: =IF(I173="","",I173-I170) ->  | J174: =IF(J173="","",J173-J170) ->  | K174: =IF(K173="","",K173-K170) ->  | L174: =IF(L173="","",L173-L170) ->  | M174: =IF(M173="","",M173-M170) ->  | N174: =IF(N173="","",N173-N170) ->  | O174: =IF(O173="","",O173-O170) -> 
A176: 52 | Q176: =IF(AND(ISBLANK(B176), ISBLANK(C176)), "X", "") -> X
C177: Change | D177: =IF(D176="","",D176-D173) ->  | E177: =IF(E176="","",E176-E173) ->  | F177: =IF(F176="","",F176-F173) ->  | G177: =IF(G176="","",G176-G173) ->  | H177: =IF(H176="","",H176-H173) ->  | I177: =IF(I176="","",I176-I173) ->  | J177: =IF(J176="","",J176-J173) ->  | K177: =IF(K176="","",K176-K173) ->  | L177: =IF(L176="","",L176-L173) ->  | M177: =IF(M176="","",M176-M173) ->  | N177: =IF(N176="","",N176-N173) ->  | O177: =IF(O176="","",O176-O173) -> 
A179: 53 | Q179: =IF(AND(ISBLANK(B179), ISBLANK(C179)), "X", "") -> X
C180: Change | D180: =IF(D179="","",D179-D176) ->  | E180: =IF(E179="","",E179-E176) ->  | F180: =IF(F179="","",F179-F176) ->  | G180: =IF(G179="","",G179-G176) ->  | H180: =IF(H179="","",H179-H176) ->  | I180: =IF(I179="","",I179-I176) ->  | J180: =IF(J179="","",J179-J176) ->  | K180: =IF(K179="","",K179-K176) ->  | L180: =IF(L179="","",L179-L176) ->  | M180: =IF(M179="","",M179-M176) ->  | N180: =IF(N179="","",N179-N176) ->  | O180: =IF(O179="","",O179-O176) -> 
R181: Page Break 3
A182: 54 | Q182: =IF(AND(ISBLANK(B182), ISBLANK(C182)), "X", "") -> X
C183: Change | D183: =IF(D182="","",D182-D179) ->  | E183: =IF(E182="","",E182-E179) ->  | F183: =IF(F182="","",F182-F179) ->  | G183: =IF(G182="","",G182-G179) ->  | H183: =IF(H182="","",H182-H179) ->  | I183: =IF(I182="","",I182-I179) ->  | J183: =IF(J182="","",J182-J179) ->  | K183: =IF(K182="","",K182-K179) ->  | L183: =IF(L182="","",L182-L179) ->  | M183: =IF(M182="","",M182-M179) ->  | N183: =IF(N182="","",N182-N179) ->  | O183: =IF(O182="","",O182-O179) -> 
A185: 55 | Q185: =IF(AND(ISBLANK(B185), ISBLANK(C185)), "X", "") -> X
C186: Change | D186: =IF(D185="","",D185-D182) ->  | E186: =IF(E185="","",E185-E182) ->  | F186: =IF(F185="","",F185-F182) ->  | G186: =IF(G185="","",G185-G182) ->  | H186: =IF(H185="","",H185-H182) ->  | I186: =IF(I185="","",I185-I182) ->  | J186: =IF(J185="","",J185-J182) ->  | K186: =IF(K185="","",K185-K182) ->  | L186: =IF(L185="","",L185-L182) ->  | M186: =IF(M185="","",M185-M182) ->  | N186: =IF(N185="","",N185-N182) ->  | O186: =IF(O185="","",O185-O182) -> 
A188: 56 | Q188: =IF(AND(ISBLANK(B188), ISBLANK(C188)), "X", "") -> X
C189: Change | D189: =IF(D188="","",D188-D185) ->  | E189: =IF(E188="","",E188-E185) ->  | F189: =IF(F188="","",F188-F185) ->  | G189: =IF(G188="","",G188-G185) ->  | H189: =IF(H188="","",H188-H185) ->  | I189: =IF(I188="","",I188-I185) ->  | J189: =IF(J188="","",J188-J185) ->  | K189: =IF(K188="","",K188-K185) ->  | L189: =IF(L188="","",L188-L185) ->  | M189: =IF(M188="","",M188-M185) ->  | N189: =IF(N188="","",N188-N185) ->  | O189: =IF(O188="","",O188-O185) -> 
A191: 57 | Q191: =IF(AND(ISBLANK(B191), ISBLANK(C191)), "X", "") -> X
C192: Change | D192: =IF(D191="","",D191-D188) ->  | E192: =IF(E191="","",E191-E188) ->  | F192: =IF(F191="","",F191-F188) ->  | G192: =IF(G191="","",G191-G188) ->  | H192: =IF(H191="","",H191-H188) ->  | I192: =IF(I191="","",I191-I188) ->  | J192: =IF(J191="","",J191-J188) ->  | K192: =IF(K191="","",K191-K188) ->  | L192: =IF(L191="","",L191-L188) ->  | M192: =IF(M191="","",M191-M188) ->  | N192: =IF(N191="","",N191-N188) ->  | O192: =IF(O191="","",O191-O188) -> 
A194: 58 | Q194: =IF(AND(ISBLANK(B194), ISBLANK(C194)), "X", "") -> X
C195: Change | D195: =IF(D194="","",D194-D191) ->  | E195: =IF(E194="","",E194-E191) ->  | F195: =IF(F194="","",F194-F191) ->  | G195: =IF(G194="","",G194-G191) ->  | H195: =IF(H194="","",H194-H191) ->  | I195: =IF(I194="","",I194-I191) ->  | J195: =IF(J194="","",J194-J191) ->  | K195: =IF(K194="","",K194-K191) ->  | L195: =IF(L194="","",L194-L191) ->  | M195: =IF(M194="","",M194-M191) ->  | N195: =IF(N194="","",N194-N191) ->  | O195: =IF(O194="","",O194-O191) -> 
A197: 59 | Q197: =IF(AND(ISBLANK(B197), ISBLANK(C197)), "X", "") -> X
C198: Change | D198: =IF(D197="","",D197-D194) ->  | E198: =IF(E197="","",E197-E194) ->  | F198: =IF(F197="","",F197-F194) ->  | G198: =IF(G197="","",G197-G194) ->  | H198: =IF(H197="","",H197-H194) ->  | I198: =IF(I197="","",I197-I194) ->  | J198: =IF(J197="","",J197-J194) ->  | K198: =IF(K197="","",K197-K194) ->  | L198: =IF(L197="","",L197-L194) ->  | M198: =IF(M197="","",M197-M194) ->  | N198: =IF(N197="","",N197-N194) ->  | O198: =IF(O197="","",O197-O194) -> 
A200: 60 | Q200: =IF(AND(ISBLANK(B200), ISBLANK(C200)), "X", "") -> X
C201: Change | D201: =IF(D200="","",D200-D197) ->  | E201: =IF(E200="","",E200-E197) ->  | F201: =IF(F200="","",F200-F197) ->  | G201: =IF(G200="","",G200-G197) ->  | H201: =IF(H200="","",H200-H197) ->  | I201: =IF(I200="","",I200-I197) ->  | J201: =IF(J200="","",J200-J197) ->  | K201: =IF(K200="","",K200-K197) ->  | L201: =IF(L200="","",L200-L197) ->  | M201: =IF(M200="","",M200-M197) ->  | N201: =IF(N200="","",N200-N197) ->  | O201: =IF(O200="","",O200-O197) -> 
R203: Page Break 4
